Workbook

Sheet Avantages perçus
A1: Bénéficiaire | B1: Type de bénéficiaire | C1: Entreprise | D1: Date | E1: Nature | F1: Montant
A2: Xavier AYRAL | B2: Médecin | C2: Laboratoires Expanscience | D2: 2014-04-10 | E2: Repas | F2: 38
A3: Xavier AYRAL | B3: Médecin | C3: AbbVie | D3: 28/03/2014 | E3: REPAS | F3: 46
A4: Xavier AYRAL | B4: Médecin | C4: TRB CHEMEDICA | D4: 19/11/2013 | E4: AUTRE : REUNION | F4: 18
A5: Xavier AYRAL | B5: Médecin | C5: PFIZER SAS | D5: 23/05/2014 | E5: REPAS | F5: 56
A6: Xavier AYRAL | B6: Médecin | C6: ICOMED | D6: 21/05/2015 | E6: Autre: [Enquête] | F6: 30
A7: Xavier AYRAL | B7: Médecin | C7: MSD France | D7: 24/10/2012 | E7: HOSPITALITÉ | F7: 94
A8: Xavier AYRAL | B8: Médecin | C8: UCB Pharma SA | D8: 25/09/2015 | E8: REPAS | F8: 44
A9: Xavier AYRAL | B9: Médecin | C9: ROCHE SAS | D9: 2014-02-05 | E9: Repas | F9: 60
A10: Xavier AYRAL | B10: Médecin | C10: ROCHE SAS | D10: 2014-02-12 | E10: Repas | F10: 23
A11: Xavier AYRAL | B11: Médecin | C11: AbbVie | D11: 2015-03-03 | E11: REPAS | F11: 48
A12: Xavier AYRAL | B12: Médecin | C12: PFIZER SAS | D12: 2015-02-06 | E12: Repas | F12: 16
A13: Xavier AYRAL | B13: Médecin | C13: TRB CHEMEDICA | D13: 2015-06-06 | E13: INSCRIPTION | F13: 470
A14: Xavier AYRAL | B14: Médecin | C14: UCB Pharma SA | D14: 2015-05-12 | E14: Repas | F14: 20
A15: Xavier AYRAL | B15: Médecin | C15: TRB CHEMEDICA | D15: 2015-11-04 | E15: AUTRE : CONGRES | F15: 1021
A16: Xavier AYRAL | B16: Médecin | C16: BRISTOL-MYERS SQUIBB | D16: 22/11/2013 | E16: Repas | F16: 16
A17: Xavier AYRAL | B17: Médecin | C17: BRISTOL-MYERS SQUIBB | D17: 19/07/2013 | E17: Repas | F17: 43
A18: Xavier AYRAL | B18: Médecin | C18: AbbVie | D18: 2013-07-02 | E18: Repas | F18: 41
A19: Xavier AYRAL | B19: Médecin | C19: ICOMED | D19: 22/05/2013 | E19: Autre: [Enquête] | F19: 30
A20: Xavier AYRAL | B20: Médecin | C20: PFIZER SAS | D20: 2014-02-08 | E20: REPAS | F20: 84
A21: Xavier AYRAL | B21: Médecin | C21: PFIZER SAS | D21: 20/12/2013 | E21: Repas | F21: 16
A22: Xavier AYRAL | B22: Médecin | C22: UCB Pharma SA | D22: 29/11/2013 | E22: Repas | F22: 20
A23: Xavier AYRAL | B23: Médecin | C23: MSD France | D23: 2013-12-01 | E23: HOSPITALITÉ | F23: 290
A24: Xavier AYRAL | B24: Médecin | C24: MSD France | D24: 16/09/2015 | E24: REPAS | F24: 58
A25: Xavier AYRAL | B25: Médecin | C25: ICOMED | D25: 2014-06-05 | E25: Autre: [Enquête] | F25: 25
A26: Anne BLANCHAIS (BEHR) | B26: Médecin | C26: MSD France | D26: 14/06/2012 | E26: REPAS | F26: 26
A27: Anne BLANCHAIS (BEHR) | B27: Médecin | C27: AbbVie | D27: 2012-12-10 | E27: AUTRE : [HOSPITALITE] | F27: 60
A28: Anne BLANCHAIS (BEHR) | B28: Médecin | C28: AbbVie | D28: 2012-12-10 | E28: AUTRE : [HOSPITALITE] | F28: 65
A29: Anne BLANCHAIS (BEHR) | B29: Médecin | C29: AbbVie | D29: 2013-07-02 | E29: Repas | F29: 41
A30: Anne BLANCHAIS (BEHR) | B30: Médecin | C30: UCB Pharma SA | D30: 2013-07-12 | E30: Repas | F30: 34
A31: Anne BLANCHAIS (BEHR) | B31: Médecin | C31: BRISTOL-MYERS SQUIBB | D31: 19/07/2013 | E31: Repas | F31: 43
A32: Anne BLANCHAIS (BEHR) | B32: Médecin | C32: UCB Pharma SA | D32: 15/10/2013 | E32: Repas | F32: 50
A33: Anne BLANCHAIS (BEHR) | B33: Médecin | C33: MSD France | D33: 23/10/2013 | E33: REPAS | F33: 51
A34: Anne BLANCHAIS (BEHR) | B34: Médecin | C34: ROCHE SAS | D34: 25/10/2013 | E34: Hébergement | F34: 224
A35: Anne BLANCHAIS (BEHR) | B35: Médecin | C35: ROCHE SAS | D35: 25/10/2013 | E35: Inscription | F35: 600
A36: Anne BLANCHAIS (BEHR) | B36: Médecin | C36: ROCHE SAS | D36: 25/10/2013 | E36: Transport | F36: 14
A37: Anne BLANCHAIS (BEHR) | B37: Médecin | C37: ROCHE SAS | D37: 25/10/2013 | E37: Transport | F37: 26
A38: Anne BLANCHAIS (BEHR) | B38: Médecin | C38: ROCHE SAS | D38: 25/10/2013 | E38: Transport | F38: 62
A39: Anne BLANCHAIS (BEHR) | B39: Médecin | C39: ROCHE SAS | D39: 25/10/2013 | E39: Repas | F39: 55
A40: Anne BLANCHAIS (BEHR) | B40: Médecin | C40: ROCHE SAS | D40: 25/10/2013 | E40: Transport | F40: 770
A41: Anne BLANCHAIS (BEHR) | B41: Médecin | C41: ROCHE SAS | D41: 25/10/2013 | E41: Repas | F41: 41
A42: Anne BLANCHAIS (BEHR) | B42: Médecin | C42: ROCHE SAS | D42: 26/10/2013 | E42: Repas | F42: 59
A43: Anne BLANCHAIS (BEHR) | B43: Médecin | C43: ROCHE SAS | D43: 26/10/2013 | E43: Hébergement | F43: 224
A44: Anne BLANCHAIS (BEHR) | B44: Médecin | C44: ROCHE SAS | D44: 26/10/2013 | E44: Transport | F44: 14
A45: Anne BLANCHAIS (BEHR) | B45: Médecin | C45: ROCHE SAS | D45: 26/10/2013 | E45: Transport | F45: 26
A46: Anne BLANCHAIS (BEHR) | B46: Médecin | C46: ROCHE SAS | D46: 27/10/2013 | E46: Hébergement | F46: 224
A47: Anne BLANCHAIS (BEHR) | B47: Médecin | C47: ROCHE SAS | D47: 27/10/2013 | E47: Repas | F47: 51
A48: Anne BLANCHAIS (BEHR) | B48: Médecin | C48: ROCHE SAS | D48: 28/10/2013 | E48: Hébergement | F48: 224
A49: Anne BLANCHAIS (BEHR) | B49: Médecin | C49: ROCHE SAS | D49: 28/10/2013 | E49: Repas | F49: 59
A50: Anne BLANCHAIS (BEHR) | B50: Médecin | C50: ROCHE SAS | D50: 29/10/2013 | E50: Hébergement | F50: 224
A51: Anne BLANCHAIS (BEHR) | B51: Médecin | C51: BRISTOL-MYERS SQUIBB | D51: 22/11/2013 | E51: Repas | F51: 16
A52: Anne BLANCHAIS (BEHR) | B52: Médecin | C52: UCB Pharma SA | D52: 29/11/2013 | E52: Repas | F52: 20
A53: Anne BLANCHAIS (BEHR) | B53: Médecin | C53: PFIZER SAS | D53: 2013-12-03 | E53: AUTRE: INSCRIPTION | F53: 450
A54: Anne BLANCHAIS (BEHR) | B54: Médecin | C54: PFIZER SAS | D54: 20/12/2013 | E54: Repas | F54: 16
A55: Anne BLANCHAIS (BEHR) | B55: Médecin | C55: UCB Pharma SA | D55: 2014-01-03 | E55: Repas | F55: 21
A56: Anne BLANCHAIS (BEHR) | B56: Médecin | C56: ROCHE SAS | D56: 2014-02-05 | E56: Repas | F56: 60
A57: Anne BLANCHAIS (BEHR) | B57: Médecin | C57: BRISTOL-MYERS SQUIBB | D57: 21/02/2014 | E57: Repas | F57: 43
A58: Anne BLANCHAIS (BEHR) | B58: Médecin | C58: Laboratoires Expanscience | D58: 2014-04-10 | E58: Repas | F58: 38
A59: Anne BLANCHAIS (BEHR) | B59: Médecin | C59: UCB Pharma SA | D59: 2014-12-12 | E59: Repas | F59: 50
A60: Anne BLANCHAIS (BEHR) | B60: Médecin | C60: BRISTOL-MYERS SQUIBB | D60: 2015-02-06 | E60: Repas | F60: 23
A61: Anne BLANCHAIS (BEHR) | B61: Médecin | C61: AbbVie | D61: 2015-03-03 | E61: REPAS | F61: 48
A62: Anne BLANCHAIS (BEHR) | B62: Médecin | C62: Lilly France SAS | D62: 20/03/2015 | E62: REPAS | F62: 43
A63: Anne BLANCHAIS (BEHR) | B63: Médecin | C63: MSD France | D63: 16/09/2015 | E63: REPAS | F63: 58
A64: Anne BLANCHAIS (BEHR) | B64: Médecin | C64: UCB Pharma SA | D64: 25/09/2015 | E64: REPAS | F64: 44
A65: Anne BLANCHAIS (BEHR) | B65: Médecin | C65: AbbVie | D65: 25/11/2015 | E65: REPAS | F65: 46
A66: Anne BLANCHAIS (BEHR) | B66: Médecin | C66: MSD France | D66: 2015-12-10 | E66: REPAS | F66: 59
A67: Karine BRIOT | B67: Médecin | C67: MSD France | D67: 29/03/2012 | E67: HOSPITALITÉ | F67: 53
A68: Karine BRIOT | B68: Médecin | C68: MSD France | D68: 2012-09-04 | E68: HOSPITALITÉ | F68: 55
A69: Karine BRIOT | B69: Médecin | C69: PFIZER SAS | D69: 29/06/2013 | E69: HEBERGEMENT | F69: 130
A70: Karine BRIOT | B70: Médecin | C70: PFIZER SAS | D70: 29/06/2013 | E70: REPAS | F70: 111
A71: Karine BRIOT | B71: Médecin | C71: AbbVie | D71: 2013-07-02 | E71: Repas | F71: 41
A72: Karine BRIOT | B72: Médecin | C72: Lilly France SAS | D72: 2013-10-03 | E72: REPAS | F72: 16
A73: Karine BRIOT | B73: Médecin | C73: Lilly France SAS | D73: 2013-10-03 | E73: REPAS | F73: 16
A74: Karine BRIOT | B74: Médecin | C74: Lilly France SAS | D74: 2013-10-05 | E74: REPAS | F74: 10
A75: Karine BRIOT | B75: Médecin | C75: Lilly France SAS | D75: 2013-10-05 | E75: REPAS | F75: 11
A76: Karine BRIOT | B76: Médecin | C76: MSD France | D76: 23/10/2013 | E76: REPAS | F76: 51
A77: Karine BRIOT | B77: Médecin | C77: ROCHE SAS | D77: 25/10/2013 | E77: Transport | F77: 770
A78: Karine BRIOT | B78: Médecin | C78: ROCHE SAS | D78: 25/10/2013 | E78: Hébergement | F78: 224
A79: Karine BRIOT | B79: Médecin | C79: ROCHE SAS | D79: 25/10/2013 | E79: Inscription | F79: 460
A80: Karine BRIOT | B80: Médecin | C80: ROCHE SAS | D80: 25/10/2013 | E80: Transport | F80: 14
A81: Karine BRIOT | B81: Médecin | C81: ROCHE SAS | D81: 25/10/2013 | E81: Transport | F81: 26
A82: Karine BRIOT | B82: Médecin | C82: ROCHE SAS | D82: 25/10/2013 | E82: Repas | F82: 41
A83: Karine BRIOT | B83: Médecin | C83: ROCHE SAS | D83: 25/10/2013 | E83: Repas | F83: 55
A84: Karine BRIOT | B84: Médecin | C84: ROCHE SAS | D84: 26/10/2013 | E84: Transport | F84: 14
A85: Karine BRIOT | B85: Médecin | C85: ROCHE SAS | D85: 26/10/2013 | E85: Hébergement | F85: 224
A86: Karine BRIOT | B86: Médecin | C86: ROCHE SAS | D86: 26/10/2013 | E86: Repas | F86: 59
A87: Karine BRIOT | B87: Médecin | C87: ROCHE SAS | D87: 26/10/2013 | E87: Repas | F87: 59
A88: Karine BRIOT | B88: Médecin | C88: ROCHE SAS | D88: 27/10/2013 | E88: Repas | F88: 51
A89: Karine BRIOT | B89: Médecin | C89: ROCHE SAS | D89: 27/10/2013 | E89: Hébergement | F89: 224
A90: Karine BRIOT | B90: Médecin | C90: ROCHE SAS | D90: 28/10/2013 | E90: Hébergement | F90: 224
A91: Karine BRIOT | B91: Médecin | C91: ROCHE SAS | D91: 28/10/2013 | E91: Repas | F91: 59
A92: Karine BRIOT | B92: Médecin | C92: ROCHE SAS | D92: 29/10/2013 | E92: Hébergement | F92: 224
A93: Karine BRIOT | B93: Médecin | C93: Lilly France SAS | D93: 2013-11-08 | E93: TRANSPORT | F93: 384
A94: Karine BRIOT | B94: Médecin | C94: AMGEN SAS | D94: 19/11/2013 | E94: REPAS | F94: 48
A95: Karine BRIOT | B95: Médecin | C95: Lilly France SAS | D95: 22/11/2013 | E95: REPAS | F95: 60
A96: Karine BRIOT | B96: Médecin | C96: Lilly France SAS | D96: 22/11/2013 | E96: REPAS | F96: 10
A97: Karine BRIOT | B97: Médecin | C97: Lilly France SAS | D97: 22/11/2013 | E97: AUTRE : [REMBOURSEMENT FRAIS LOGISTIQUE] | F97: 10
A98: Karine BRIOT | B98: Médecin | C98: Lilly France SAS | D98: 22/11/2013 | E98: AUTRE : [REMBOURSEMENT FRAIS LOGISTIQUE] | F98: 60
A99: Karine BRIOT | B99: Médecin | C99: LIVE ! BY GL EVENTS | D99: 17/01/2014 | E99: REPAS | F99: 65
A100: Karine BRIOT | B100: Médecin | C100: ROCHE SAS | D100: 2014-02-05 | E100: Repas | F100: 60
A101: Karine BRIOT | B101: Médecin | C101: Lilly France SAS | D101: 19/02/2014 | E101: REPAS | F101: 39
A102: Karine BRIOT | B102: Médecin | C102: AMGEN SAS | D102: 2014-04-11 | E102: AUTRE [PAUSE] | F102: 10
A103: Karine BRIOT | B103: Médecin | C103: AMGEN SAS | D103: 2014-04-11 | E103: REPAS REUNION | F103: 48
A104: Karine BRIOT | B104: Médecin | C104: PFIZER SAS | D104: 16/05/2014 | E104: REPAS | F104: 76
A105: Karine BRIOT | B105: Médecin | C105: Lilly France SAS | D105: 24/05/2014 | E105: REPAS | F105: 10
A106: Karine BRIOT | B106: Médecin | C106: Lilly France SAS | D106: 24/05/2014 | E106: TRANSPORT | F106: 10
A107: Karine BRIOT | B107: Médecin | C107: Lilly France SAS | D107: 24/05/2014 | E107: REPAS | F107: 60
A108: Karine BRIOT | B108: Médecin | C108: Lilly France SAS | D108: 24/05/2014 | E108: REPAS | F108: 60
A109: Karine BRIOT | B109: Médecin | C109: Lilly France SAS | D109: 25/05/2014 | E109: REPAS | F109: 10
A110: Karine BRIOT | B110: Médecin | C110: AMGEN SAS | D110: 2014-06-12 | E110: REPAS REUNION | F110: 60
A111: Karine BRIOT | B111: Médecin | C111: Lilly France SAS | D111: 24/06/2014 | E111: REPAS | F111: 60
A112: Karine BRIOT | B112: Médecin | C112: Lilly France SAS | D112: 24/06/2014 | E112: REPAS | F112: 60
A113: Karine BRIOT | B113: Médecin | C113: AMGEN SAS | D113: 2014-10-11 | E113: REPAS REUNION | F113: 60
A114: Karine BRIOT | B114: Médecin | C114: Lilly France SAS | D114: 21/11/2014 | E114: REPAS | F114: 10
A115: Karine BRIOT | B115: Médecin | C115: AMGEN SAS | D115: 22/11/2014 | E115: REPAS REUNION | F115: 10
A116: Karine BRIOT | B116: Médecin | C116: AMGEN SAS | D116: 22/11/2014 | E116: REPAS REUNION | F116: 10
A117: Karine BRIOT | B117: Médecin | C117: AMGEN SAS | D117: 2014-12-02 | E117: REPAS IMPROMPTU | F117: 20
A118: Karine BRIOT | B118: Médecin | C118: Lilly France SAS | D118: 2014-12-09 | E118: AUTRE : [INSCRIPTION CONGRÈS SCIENTIFIQUE] | F118: 290
A119: Karine BRIOT | B119: Médecin | C119: AbbVie | D119: 2015-03-03 | E119: REPAS | F119: 48
A120: Karine BRIOT | B120: Médecin | C120: AMGEN SAS | D120: 2015-03-05 | E120: REPAS REUNION | F120: 60
A121: Karine BRIOT | B121: Médecin | C121: AMGEN SAS | D121: 2015-03-05 | E121: HEBERGEMENT | F121: 96
A122: Karine BRIOT | B122: Médecin | C122: AMGEN SAS | D122: 2015-03-05 | E122: TRANSPORT | F122: 166
A123: Karine BRIOT | B123: Médecin | C123: Lilly France SAS | D123: 2015-05-06 | E123: HÉBERGEMENT | F123: 91
A124: Karine BRIOT | B124: Médecin | C124: AMGEN SAS | D124: 26/05/2015 | E124: REPAS REUNION | F124: 56
A125: Karine BRIOT | B125: Médecin | C125: AMGEN SAS | D125: 26/05/2015 | E125: HEBERGEMENT | F125: 96
A126: Karine BRIOT | B126: Médecin | C126: AMGEN SAS | D126: 26/05/2015 | E126: TRANSPORT | F126: 166
A127: Karine BRIOT | B127: Médecin | C127: Lilly France SAS | D127: 29/05/2015 | E127: REPAS | F127: 10
A128: Karine BRIOT | B128: Médecin | C128: Lilly France SAS | D128: 30/05/2015 | E128: REPAS | F128: 10
A129: Karine BRIOT | B129: Médecin | C129: Lilly France SAS | D129: 2015-06-04 | E129: TRANSPORT | F129: 163
A130: Karine BRIOT | B130: Médecin | C130: Lilly France SAS | D130: 2015-06-04 | E130: REPAS | F130: 60
A131: Karine BRIOT | B131: Médecin | C131: AMGEN SAS | D131: 2015-06-09 | E131: REPAS REUNION | F131: 60
A132: Karine BRIOT | B132: Médecin | C132: MSD France | D132: 2015-06-10 | E132: TRANSPORT | F132: 309
A133: Karine BRIOT | B133: Médecin | C133: MSD France | D133: 2015-06-10 | E133: TRANSPORT | F133: 427
A134: Karine BRIOT | B134: Médecin | C134: MSD France | D134: 2015-06-10 | E134: REPAS | F134: 60
A135: Karine BRIOT | B135: Médecin | C135: MSD France | D135: 2015-06-10 | E135: INSCRIPTION | F135: 765
A136: Karine BRIOT | B136: Médecin | C136: MSD France | D136: 2015-06-10 | E136: HÉBERGEMENT | F136: 528
A137: Karine BRIOT | B137: Médecin | C137: MSD France | D137: 2015-06-11 | E137: REPAS | F137: 60
A138: Karine BRIOT | B138: Médecin | C138: MSD France | D138: 2015-06-12 | E138: REPAS | F138: 60
A139: Karine BRIOT | B139: Médecin | C139: ICOMED | D139: 15/06/2015 | E139: Autre: [Enquête] | F139: 31
A140: Karine BRIOT | B140: Médecin | C140: MSD France | D140: 21/07/2015 | E140: REPAS | F140: 22
A141: Karine BRIOT | B141: Médecin | C141: MSD France | D141: 16/09/2015 | E141: REPAS | F141: 58
A142: Karine BRIOT | B142: Médecin | C142: AMGEN SAS | D142: 2015-11-05 | E142: REPAS REUNION | F142: 50
A143: Karine BRIOT | B143: Médecin | C143: AMGEN SAS | D143: 2015-11-05 | E143: TRANSPORT | F143: 73
A144: Karine BRIOT | B144: Médecin | C144: AMGEN SAS | D144: 2015-11-05 | E144: HEBERGEMENT | F144: 119
A145: Karine BRIOT | B145: Médecin | C145: MSD France | D145: 2015-12-10 | E145: REPAS | F145: 59
A146: Joël DAMIANO | B146: Médecin | C146: MSD France | D146: 26/01/2012 | E146: HOSPITALITÉ | F146: 18
A147: Joël DAMIANO | B147: Médecin | C147: MSD France | D147: 26/03/2012 | E147: REPAS | F147: 21
A148: Joël DAMIANO | B148: Médecin | C148: MSD France | D148: 17/09/2012 | E148: REPAS | F148: 33
A149: Joël DAMIANO | B149: Médecin | C149: MUNDIPHARMA | D149: 26/11/2012 | E149: AUTRE : RELATIONS NORMALES DE TRAVAIL | F149: 11
A150: Joël DAMIANO | B150: Médecin | C150: AbbVie | D150: 2013-12-01 | E150: AUTRE: [INSCRIPTION] | F150: 290
A151: Joël DAMIANO | B151: Médecin | C151: ROCHE SAS | D151: 14/02/2014 | E151: Repas | F151: 23
A152: Joël DAMIANO | B152: Médecin | C152: MSD France | D152: 2014-06-06 | E152: REPAS | F152: 25
A153: Joël DAMIANO | B153: Médecin | C153: AbbVie | D153: 2014-06-11 | E153: INSCRIPTION | F153: 646
A154: Joël DAMIANO | B154: Médecin | C154: TRB CHEMEDICA | D154: 2015-01-09 | E154: CADEAUX | F154: 89
A155: Joël DAMIANO | B155: Médecin | C155: TRB CHEMEDICA | D155: 2015-06-06 | E155: INSCRIPTION | F155: 350
A156: Joël DAMIANO | B156: Médecin | C156: FH ORTHOPEDICS | D156: 17/06/2015 | E156: REPAS | F156: 23
A157: Jacques FECHTENBAUM | B157: Médecin | C157: PIERRE FABRE MEDICAMENT | D157: 27/03/2012 | E157: Restauration | F157: 30
A158: Jacques FECHTENBAUM | B158: Médecin | C158: LABORATOIRE GLAXOSMITHKLINE | D158: 2012-06-05 | E158: Hospitalité | F158: 62
A159: Jacques FECHTENBAUM | B159: Médecin | C159: ICOMED | D159: 21/05/2013 | E159: Autre: [Enquête] | F159: 25
A160: Jacques FECHTENBAUM | B160: Médecin | C160: ROCHE SAS | D160: 2013-06-12 | E160: Inscription | F160: 650
A161: Jacques FECHTENBAUM | B161: Médecin | C161: ROCHE SAS | D161: 2013-06-12 | E161: Hébergement | F161: 226
A162: Jacques FECHTENBAUM | B162: Médecin | C162: ROCHE SAS | D162: 2013-06-12 | E162: Transport | F162: 326
A163: Jacques FECHTENBAUM | B163: Médecin | C163: ROCHE SAS | D163: 13/06/2013 | E163: Restauration | F163: 60
A164: Jacques FECHTENBAUM | B164: Médecin | C164: ROCHE SAS | D164: 13/06/2013 | E164: Hébergement | F164: 226
A165: Jacques FECHTENBAUM | B165: Médecin | C165: ROCHE SAS | D165: 15/06/2013 | E165: Restauration | F165: 60
A166: Jacques FECHTENBAUM | B166: Médecin | C166: PFIZER SAS | D166: 26/06/2013 | E166: Repas | F166: 50
A167: Jacques FECHTENBAUM | B167: Médecin | C167: AbbVie | D167: 2013-07-02 | E167: Repas | F167: 41
A168: Jacques FECHTENBAUM | B168: Médecin | C168: MSD France | D168: 2013-07-02 | E168: REPAS | F168: 22
A169: Jacques FECHTENBAUM | B169: Médecin | C169: MSD France | D169: 23/10/2013 | E169: REPAS | F169: 51
A170: Jacques FECHTENBAUM | B170: Médecin | C170: PFIZER SAS | D170: 20/11/2013 | E170: Repas | F170: 60
A171: Jacques FECHTENBAUM | B171: Médecin | C171: MSD France | D171: 2013-12-01 | E171: HOSPITALITÉ | F171: 290
A172: Jacques FECHTENBAUM | B172: Médecin | C172: LIVE ! BY GL EVENTS | D172: 17/01/2014 | E172: REPAS | F172: 65
A173: Jacques FECHTENBAUM | B173: Médecin | C173: LIVE ! BY GL EVENTS | D173: 17/01/2014 | E173: INSCRIPTION | F173: 20
A174: Jacques FECHTENBAUM | B174: Médecin | C174: ROCHE SAS | D174: 2014-02-05 | E174: Repas | F174: 60
A175: Jacques FECHTENBAUM | B175: Médecin | C175: AMGEN SAS | D175: 2014-02-05 | E175: REPAS IMPROMPTU | F175: 34
A176: Jacques FECHTENBAUM | B176: Médecin | C176: Lilly France SAS | D176: 26/02/2014 | E176: REPAS | F176: 18
A177: Jacques FECHTENBAUM | B177: Médecin | C177: Lilly France SAS | D177: 26/02/2014 | E177: REPAS | F177: 18
A178: Jacques FECHTENBAUM | B178: Médecin | C178: AMGEN SAS | D178: 18/03/2014 | E178: REPAS IMPROMPTU | F178: 35
A179: Jacques FECHTENBAUM | B179: Médecin | C179: Laboratoires Expanscience | D179: 2014-04-10 | E179: Repas | F179: 38
A180: Jacques FECHTENBAUM | B180: Médecin | C180: MSD France | D180: 20/05/2014 | E180: REPAS | F180: 56
A181: Jacques FECHTENBAUM | B181: Médecin | C181: AbbVie | D181: 23/05/2014 | E181: REPAS | F181: 59
A182: Jacques FECHTENBAUM | B182: Médecin | C182: ICOMED | D182: 2014-06-05 | E182: Autre: [Enquête] | F182: 25
A183: Jacques FECHTENBAUM | B183: Médecin | C183: PFIZER SAS | D183: 2014-06-10 | E183: REPAS | F183: 44
A184: Jacques FECHTENBAUM | B184: Médecin | C184: Lilly France SAS | D184: 2014-07-09 | E184: REPAS | F184: 34
A185: Jacques FECHTENBAUM | B185: Médecin | C185: Laboratoires Expanscience | D185: 26/09/2014 | E185: Hébergement | F185: 540
A186: Jacques FECHTENBAUM | B186: Médecin | C186: Laboratoires Expanscience | D186: 26/09/2014 | E186: Transport | F186: 545
A187: Jacques FECHTENBAUM | B187: Médecin | C187: Laboratoires Expanscience | D187: 26/09/2014 | E187: Hospitalité | F187: 150
A188: Jacques FECHTENBAUM | B188: Médecin | C188: Lilly France SAS | D188: 27/09/2014 | E188: TRANSPORT | F188: 85
A189: Jacques FECHTENBAUM | B189: Médecin | C189: Lilly France SAS | D189: 27/09/2014 | E189: HÉBERGEMENT | F189: 160
A190: Jacques FECHTENBAUM | B190: Médecin | C190: Lilly France SAS | D190: 27/09/2014 | E190: REPAS | F190: 41
A191: Jacques FECHTENBAUM | B191: Médecin | C191: Lilly France SAS | D191: 27/09/2014 | E191: REPAS | F191: 60
A192: Jacques FECHTENBAUM | B192: Médecin | C192: Lilly France SAS | D192: 28/09/2014 | E192: REPAS | F192: 38
A193: Jacques FECHTENBAUM | B193: Médecin | C193: Lilly France SAS | D193: 28/09/2014 | E193: TRANSPORT | F193: 85
A194: Jacques FECHTENBAUM | B194: Médecin | C194: ROTTAPHARM SAS | D194: 2014-10-09 | E194: EPU | F194: 55
A195: Jacques FECHTENBAUM | B195: Médecin | C195: MSD France | D195: 2014-12-07 | E195: INSCRIPTION | F195: 350
A196: Jacques FECHTENBAUM | B196: Médecin | C196: PFIZER SAS | D196: 18/01/2015 | E196: Repas | F196: 30
A197: Jacques FECHTENBAUM | B197: Médecin | C197: MSD France | D197: 2015-02-05 | E197: REPAS | F197: 60
A198: Jacques FECHTENBAUM | B198: Médecin | C198: AbbVie | D198: 2015-03-03 | E198: REPAS | F198: 48
A199: Jacques FECHTENBAUM | B199: Médecin | C199: BRISTOL-MYERS SQUIBB | D199: 19/03/2015 | E199: Repas | F199: 60
A200: Jacques FECHTENBAUM | B200: Médecin | C200: AMGEN SAS | D200: 2015-04-07 | E200: REPAS REUNION | F200: 39
... 584 more rows

Sheet Conventions signées
A1: Bénéficiaire | B1: Type de bénéficiaire | C1: Entreprise | D1: Date | E1: Période | F1: Objet
A2: Xavier AYRAL | B2: Médecin | C2: PFIZER SAS | D2: 07/12/2014 | E2: 07/12/2014 - 09/12/2014 | F2: Congrès / Symposium
A3: Xavier AYRAL | B3: Médecin | C3: ROCHE SAS | D3: 05/02/2014 | E3: 05/02/2014 - 05/02/2014 | F3: Autre : [ R‚union professionnelle ]
A4: Xavier AYRAL | B4: Médecin | C4: MSD France | D4: 24/10/2012 | E4: 24/10/2012 - | F4: CONVENTION D HOSPITALITE
A5: Xavier AYRAL | B5: Médecin | C5: PFIZER SAS | D5: 06/02/2015 | E5: 06/02/2015 - 07/02/2015 | F5: Autre : Reunion professionnelle ou scientifique
A6: Xavier AYRAL | B6: Médecin | C6: UCB Pharma SA | D6: 12/05/2015 | E6: 12/05/2015 - 12/05/2015 | F6: Autre : [ hospitalité liée à une manifestation scientifique ]
A7: Xavier AYRAL | B7: Médecin | C7: MSD France | D7: 16/09/2015 | E7: 16/09/2015 - | F7: CONVENTION D’HOSPITALITÉ
A8: Xavier AYRAL | B8: Médecin | C8: MSD France | D8: 01/12/2013 | E8: 01/12/2013 - 03/12/2013 | F8: CONVENTION D HOSPITALITE
A9: Xavier AYRAL | B9: Médecin | C9: PFIZER SAS | D9: 07/02/2014 | E9: 07/02/2014 - 08/02/2014 | F9: HOSPITALITE RP/CONGRES / SYMPO
A10: Xavier AYRAL | B10: Médecin | C10: PFIZER SAS | D10: 07/02/2014 | E10: 07/02/2014 - 08/02/2014 | F10: HOSPITALITE RP/CONGRES / SYMPO
A11: Xavier AYRAL | B11: Médecin | C11: Laboratoires Expanscience | D11: 25/03/2014 | E11: 25/03/2014 - 25/03/2014 | F11: Formation
A12: Anne BLANCHAIS (BEHR) | B12: Médecin | C12: ROCHE SAS | D12: 12/04/2012 | E12: 12/04/2012 - | F12: RECHERCHE
A13: Anne BLANCHAIS (BEHR) | B13: Médecin | C13: PAREXEL International | D13: 25/06/2012 | E13: 25/06/2012 - | F13: Recherche Clinique
A14: Anne BLANCHAIS (BEHR) | B14: Médecin | C14: ROCHE SAS | D14: 11/10/2013 | E14: 25/10/2013 - 30/10/2013 | F14: congrès / symposium
A15: Anne BLANCHAIS (BEHR) | B15: Médecin | C15: UCB Pharma SA | D15: 15/10/2013 | E15: 15/10/2013 - 15/10/2013 | F15: Autre : [ hospitalité liée à une manifestation scientifique ]
A16: Anne BLANCHAIS (BEHR) | B16: Médecin | C16: MSD France | D16: 23/10/2013 | E16: 23/10/2013 - | F16: CONVENTION D’HOSPITALITÉ
A17: Anne BLANCHAIS (BEHR) | B17: Médecin | C17: PFIZER SAS | D17: 01/12/2013 | E17: 01/12/2013 - 03/12/2013 | F17: HOSPITALITE RP/CONGRES / SYMPO
A18: Anne BLANCHAIS (BEHR) | B18: Médecin | C18: ROCHE SAS | D18: 05/02/2014 | E18: 05/02/2014 - 05/02/2014 | F18: Autre : [ R‚union professionnelle ]
A19: Anne BLANCHAIS (BEHR) | B19: Médecin | C19: Laboratoires Expanscience | D19: 25/03/2014 | E19: 25/03/2014 - 25/03/2014 | F19: Formation
A20: Anne BLANCHAIS (BEHR) | B20: Médecin | C20: UCB Pharma SA | D20: 16/10/2014 | E20: 16/10/2014 - 16/10/2014 | F20: Autre : [ hospitalité liée à une manifestation scientifique ]
A21: Anne BLANCHAIS (BEHR) | B21: Médecin | C21: PFIZER SAS | D21: 07/12/2014 | E21: 07/12/2014 - 09/12/2014 | F21: Congrès / Symposium
A22: Anne BLANCHAIS (BEHR) | B22: Médecin | C22: UCB Pharma SA | D22: 19/06/2015 | E22: 19/06/2015 - 19/06/2015 | F22: Autre : [ hospitalité liée à une manifestation scientifique ]
A23: Anne BLANCHAIS (BEHR) | B23: Médecin | C23: MSD France | D23: 16/09/2015 | E23: 16/09/2015 - | F23: CONVENTION D’HOSPITALITÉ
A24: Anne BLANCHAIS (BEHR) | B24: Médecin | C24: MSD France | D24: 10/12/2015 | E24: 10/12/2015 - | F24: CONVENTION D’HOSPITALITÉ
A25: Karine BRIOT | B25: Médecin | C25: MSD France | D25: 29/03/2012 | E25: 29/03/2012 - | F25: CONVENTION D’HOSPITALITÉ
A26: Karine BRIOT | B26: Médecin | C26: MSD France | D26: 04/09/2012 | E26: 04/09/2012 - | F26: CONVENTION D HOSPITALITE
A27: Karine BRIOT | B27: Médecin | C27: MSD France | D27: 24/10/2012 | E27: 24/10/2012 - | F27: CONVENTION D HOSPITALITE
A28: Karine BRIOT | B28: Médecin | C28: PFIZER SAS | D28: 13/05/2013 | E28: 13/05/2013 - | F28: ORATEUR RP/CONGRES/SYMPOSIUM
A29: Karine BRIOT | B29: Médecin | C29: A+A | D29: 26/06/2013 | E29: 26/06/2013 - | F29: ETUDE DE MARCHE
A30: Karine BRIOT | B30: Médecin | C30: PFIZER SAS | D30: 28/06/2013 | E30: 28/06/2013 - 29/06/2013 | F30: Orateur RP/Congres/Sympo
A31: Karine BRIOT | B31: Médecin | C31: Lilly France SAS | D31: 20/09/2013 | E31: 03/10/2013 - 03/10/2013 | F31: CONVENTION DE CONSULTANT
A32: Karine BRIOT | B32: Médecin | C32: AMGEN SAS | D32: 26/09/2013 | E32: 04/11/2013 - 07/11/2013 | F32: AUTRE [CONTRAT DE CONSULTANT]
A33: Karine BRIOT | B33: Médecin | C33: AMGEN SAS | D33: 10/10/2013 | E33: 12/11/2013 - 30/12/2013 | F33: AUTRE [CONVENTION D EXPERT]
A34: Karine BRIOT | B34: Médecin | C34: ROCHE SAS | D34: 11/10/2013 | E34: 25/10/2013 - 30/10/2013 | F34: congrès / symposium
A35: Karine BRIOT | B35: Médecin | C35: Lilly France SAS | D35: 23/10/2013 | E35: 23/10/2013 - 19/10/2013 | F35: INVITATION
A36: Karine BRIOT | B36: Médecin | C36: MSD France | D36: 23/10/2013 | E36: 23/10/2013 - | F36: CONVENTION D HOSPITALITE
A37: Karine BRIOT | B37: Médecin | C37: Lilly France SAS | D37: 11/11/2013 | E37: 11/11/2013 - 09/11/2013 | F37: INVITATION
A38: Karine BRIOT | B38: Médecin | C38: AMGEN SAS | D38: 19/11/2013 | E38: 19/11/2013 - 19/11/2013 | F38: AUTRE [CONVENTION D EXPERT]
A39: Karine BRIOT | B39: Médecin | C39: AMGEN SAS | D39: 19/11/2013 | E39: 19/11/2013 - 19/11/2013 | F39: AUTRE [CONVENTION D HOSPITALITE]
A40: Karine BRIOT | B40: Médecin | C40: AMGEN SAS | D40: 19/11/2013 | E40: 19/11/2013 - 19/11/2013 | F40: AUTRE [CONVENTION D EXPERT]
A41: Karine BRIOT | B41: Médecin | C41: Lilly France SAS | D41: 22/11/2013 | E41: 22/11/2013 - 22/11/2013 | F41: INVITATION
A42: Karine BRIOT | B42: Médecin | C42: Lilly France SAS | D42: 03/12/2013 | E42: 01/12/2013 - 03/12/2013 | F42: INVITATION
A43: Karine BRIOT | B43: Médecin | C43: MSD France | D43: 26/12/2013 | E43: 04/02/2014 - 30/06/2014 | F43: EXPERT
A44: Karine BRIOT | B44: Médecin | C44: MSD France | D44: 26/12/2013 | E44: 26/12/2013 - | F44: EXPERT
A45: Karine BRIOT | B45: Médecin | C45: MSD France | D45: 26/12/2013 | E45: 04/02/2014 - 30/06/2014 | F45: EXPERT
A46: Karine BRIOT | B46: Médecin | C46: AMGEN SAS | D46: 15/01/2014 | E46: 06/02/2014 - 30/12/2014 | F46: AUTRE [CONVENTION D EXPERT]
A47: Karine BRIOT | B47: Médecin | C47: NOVARTIS PHARMA SAS | D47: 17/01/2014 | E47: 17/01/2014 - 17/01/2014 | F47: Autre : [Orateur]
A48: Karine BRIOT | B48: Médecin | C48: Lilly France SAS | D48: 21/01/2014 | E48: 12/02/2014 - 13/02/2014 | F48: AUTRE : [CONTRAT D'ORATEUR]
A49: Karine BRIOT | B49: Médecin | C49: ROCHE SAS | D49: 05/02/2014 | E49: 05/02/2014 - 05/02/2014 | F49: Autre : [ R‚union professionnelle ]
A50: Karine BRIOT | B50: Médecin | C50: AMGEN SAS | D50: 27/02/2014 | E50: 01/05/2014 - 31/05/2014 | F50: AUTRE [CONTRAT DE CONSULTANT]
A51: Karine BRIOT | B51: Médecin | C51: AMGEN SAS | D51: 27/02/2014 | E51: 01/05/2014 - 31/05/2014 | F51: AUTRE [CONTRAT DE CONSULTANT]
A52: Karine BRIOT | B52: Médecin | C52: AMGEN SAS | D52: 04/03/2014 | E52: 11/04/2014 - 11/04/2014 | F52: AUTRE [CONVENTION D HOSPITALITE]
A53: Karine BRIOT | B53: Médecin | C53: AMGEN SAS | D53: 29/04/2014 | E53: 10/06/2014 - 13/06/2014 | F53: AUTRE [CONVENTION D ORATEUR]
A54: Karine BRIOT | B54: Médecin | C54: AMGEN SAS | D54: 30/04/2014 | E54: 12/06/2014 - 12/06/2014 | F54: AUTRE [CONVENTION HOSPITALITE]
A55: Karine BRIOT | B55: Médecin | C55: Lilly France SAS | D55: 12/05/2014 | E55: 12/05/2014 - 12/05/2014 | F55: AUTRE : [CONTRAT D'ORATEUR]
A56: Karine BRIOT | B56: Médecin | C56: MSD France | D56: 16/05/2014 | E56: 27/06/2014 - 28/06/2014 | F56: EXPERT
A57: Karine BRIOT | B57: Médecin | C57: PFIZER SAS | D57: 16/05/2014 | E57: 16/05/2014 - 16/05/2014 | F57: ORATEUR RP/CONGRES/SYMPOSIUM
A58: Karine BRIOT | B58: Médecin | C58: Lilly France SAS | D58: 25/05/2014 | E58: 24/05/2014 - 25/05/2014 | F58: AUTRE : [PARTICIPATION RÉUNION SCIENTIFIQUE]
A59: Karine BRIOT | B59: Médecin | C59: Lilly France SAS | D59: 06/06/2014 | E59: 06/06/2014 - 06/06/2014 | F59: AUTRE : [CONTRAT D'ORATEUR]
A60: Karine BRIOT | B60: Médecin | C60: Lilly France SAS | D60: 24/06/2014 | E60: 24/06/2014 - 24/06/2014 | F60: AUTRE : [CONTRAT D'ORATEUR]
A61: Karine BRIOT | B61: Médecin | C61: MSD France | D61: 27/06/2014 | E61: 27/06/2014 - | F61: CONVENTION D HOSPITALITE
A62: Karine BRIOT | B62: Médecin | C62: PFIZER SAS | D62: 15/07/2014 | E62: 04/11/2014 - | F62: CONSEIL
A63: Karine BRIOT | B63: Médecin | C63: Lilly France SAS | D63: 05/08/2014 | E63: 05/08/2014 - 05/08/2014 | F63: AUTRE : [CONTRAT D'ORATEUR]
A64: Karine BRIOT | B64: Médecin | C64: Lilly France SAS | D64: 05/08/2014 | E64: 05/08/2014 - 05/08/2014 | F64: AUTRE : [CONTRAT D'ORATEUR]
A65: Karine BRIOT | B65: Médecin | C65: PFIZER SAS | D65: 19/08/2014 | E65: 09/09/2014 - | F65: ORATEUR RP/CONGRES/SYMPOSIUM
A66: Karine BRIOT | B66: Médecin | C66: AMGEN SAS | D66: 19/08/2014 | E66: 09/10/2014 - 12/10/2014 | F66: AUTRE [CONTRAT D ORATEUR]
A67: Karine BRIOT | B67: Médecin | C67: Lilly France SAS | D67: 12/09/2014 | E67: 12/09/2014 - 12/09/2014 | F67: AUTRE : [CONTRAT D'ORATEUR]
A68: Karine BRIOT | B68: Médecin | C68: AMGEN SAS | D68: 06/11/2014 | E68: 22/11/2014 - 22/11/2014 | F68: AUTRE [CONVENTION D HOSPITALITE]
A69: Karine BRIOT | B69: Médecin | C69: AMGEN SAS | D69: 06/11/2014 | E69: 22/11/2014 - 22/11/2014 | F69: AUTRE [CONVENTION D HOSPITALITE]
A70: Karine BRIOT | B70: Médecin | C70: MSD France | D70: 13/11/2014 | E70: 17/12/2014 - 31/05/2015 | F70: EXPERT
A71: Karine BRIOT | B71: Médecin | C71: Lilly France SAS | D71: 21/11/2014 | E71: 21/11/2014 - 21/11/2014 | F71: AUTRE : [CONTRAT D'ORATEUR]
A72: Karine BRIOT | B72: Médecin | C72: Lilly France SAS | D72: 05/12/2014 | E72: 05/12/2014 - 05/12/2014 | F72: AUTRE : [CONTRAT D'ORATEUR]
A73: Karine BRIOT | B73: Médecin | C73: Lilly France SAS | D73: 08/12/2014 | E73: 08/12/2014 - 08/12/2014 | F73: AUTRE : [CONTRAT D'ORATEUR]
A74: Karine BRIOT | B74: Médecin | C74: AMGEN SAS | D74: 09/12/2014 | E74: 14/01/2015 - 17/01/2015 | F74: AUTRE [CONTRAT D ORATEUR]
A75: Karine BRIOT | B75: Médecin | C75: Lilly France SAS | D75: 09/12/2014 | E75: 07/12/2014 - 09/12/2014 | F75: AUTRE : [PARTICIPATION R�ION SCIENTIFIQUE]
A76: Karine BRIOT | B76: Médecin | C76: AMGEN SAS | D76: 02/02/2015 | E76: 13/03/2015 - 03/06/2015 | F76: AUTRE [CONTRAT ORATEUR]
A77: Karine BRIOT | B77: Médecin | C77: AMGEN SAS | D77: 11/02/2015 | E77: 05/03/2015 - 05/03/2015 | F77: AUTRE [CONTRAT D ORATEUR]
A78: Karine BRIOT | B78: Médecin | C78: AMGEN SAS | D78: 12/02/2015 | E78: 18/03/2015 - 18/03/2015 | F78: AUTRE [CONTRAT ORATEUR]
A79: Karine BRIOT | B79: Médecin | C79: AMGEN SAS | D79: 02/03/2015 | E79: 05/03/2015 - 05/03/2015 | F79: AUTRE [CONVENTION D HOSPITALITE]
A80: Karine BRIOT | B80: Médecin | C80: AMGEN SAS | D80: 05/03/2015 | E80: 05/03/2015 - 05/03/2015 | F80: Autre [CONVENTION D ORATEUR]
A81: Karine BRIOT | B81: Médecin | C81: PFIZER SAS | D81: 21/04/2015 | E81: 26/06/2015 - 27/06/2015 | F81: Congres / Symposium
A82: Karine BRIOT | B82: Médecin | C82: Lilly France SAS | D82: 06/05/2015 | E82: 06/05/2015 - 06/05/2015 | F82: AUTRE : [CONTRAT D'ORATEUR]
A83: Karine BRIOT | B83: Médecin | C83: AMGEN SAS | D83: 18/05/2015 | E83: 09/06/2015 - 09/06/2015 | F83: Autre [CONVENTION D ORATEUR]
A84: Karine BRIOT | B84: Médecin | C84: AMGEN SAS | D84: 18/05/2015 | E84: 09/06/2015 - 09/06/2015 | F84: AUTRE [CONTRAT ORATEUR]
A85: Karine BRIOT | B85: Médecin | C85: AMGEN SAS | D85: 21/05/2015 | E85: 23/06/2015 - 28/06/2015 | F85: AUTRE [CONTRAT ORATEUR]
A86: Karine BRIOT | B86: Médecin | C86: AMGEN SAS | D86: 26/05/2015 | E86: 26/05/2015 - 26/05/2015 | F86: Autre [CONVENTION D ORATEUR]
A87: Karine BRIOT | B87: Médecin | C87: Lilly France SAS | D87: 04/06/2015 | E87: 04/06/2015 - 04/06/2015 | F87: AUTRE : [CONTRAT D'ORATEUR]
A88: Karine BRIOT | B88: Médecin | C88: AMGEN SAS | D88: 09/06/2015 | E88: 09/06/2015 - 09/06/2015 | F88: Autre [CONVENTION D HOSPITALITE]
A89: Karine BRIOT | B89: Médecin | C89: MSD France | D89: 10/06/2015 | E89: 10/06/2015 - | F89: CONVENTION D’HOSPITALITÉ
A90: Karine BRIOT | B90: Médecin | C90: PFIZER SAS | D90: 26/06/2015 | E90: 26/06/2015 - 27/06/2015 | F90: Autre : Reunion professionnelle ou scientifique
A91: Karine BRIOT | B91: Médecin | C91: MSD France | D91: 16/09/2015 | E91: 16/09/2015 - | F91: CONVENTION D’HOSPITALITÉ
A92: Karine BRIOT | B92: Médecin | C92: MSD France | D92: 03/11/2015 | E92: 10/12/2015 - 10/12/2015 | F92: ORATEUR
A93: Karine BRIOT | B93: Médecin | C93: AMGEN SAS | D93: 05/11/2015 | E93: 05/11/2015 - 05/11/2015 | F93: Autre [CONVENTION D ORATEUR]
A94: Karine BRIOT | B94: Médecin | C94: AMGEN SAS | D94: 05/11/2015 | E94: 02/11/2015 - 06/11/2015 | F94: AUTRE [CONTRAT D ORATEUR]
A95: Karine BRIOT | B95: Médecin | C95: AMGEN SAS | D95: 09/11/2015 | E95: 12/12/2015 - 16/12/2015 | F95: AUTRE [CONTRAT D ORATEUR]
A96: Karine BRIOT | B96: Médecin | C96: MSD France | D96: 10/12/2015 | E96: 10/12/2015 - | F96: CONVENTION D’HOSPITALITÉ
A97: Joël DAMIANO | B97: Médecin | C97: MSD France | D97: 26/01/2012 | E97: 26/01/2012 - | F97: CONVENTION D’HOSPITALITÉ
A98: Joël DAMIANO | B98: Médecin | C98: AbbVie | D98: 02/12/2013 | E98: 01/12/2013 - | F98: AUTRE: [CONVENTION HOSPITALITE]
A99: Joël DAMIANO | B99: Médecin | C99: AbbVie | D99: 28/05/2014 | E99: 11/06/2014 - | F99: AUTRE: [CONVENTION HOSPITALITE]
A100: Joël DAMIANO | B100: Médecin | C100: PFIZER SAS | D100: 07/12/2014 | E100: 07/12/2014 - 09/12/2014 | F100: Congrès / Symposium
A101: Joël DAMIANO | B101: Médecin | C101: AMGEN SAS | D101: 05/02/2015 | E101: 12/03/2015 - 13/03/2015 | F101: AUTRE [CONVENTION D HOSPITALITE]
A102: Jacques FECHTENBAUM | B102: Médecin | C102: MSD France | D102: 24/10/2012 | E102: 24/10/2012 - | F102: CONVENTION D’HOSPITALITÉ
A103: Jacques FECHTENBAUM | B103: Médecin | C103: ROCHE SAS | D103: 12/06/2013 | E103: 12/06/2013 - 16/06/2013 | F103: Congrès / Symposium
A104: Jacques FECHTENBAUM | B104: Médecin | C104: MSD France | D104: 23/10/2013 | E104: 23/10/2013 - | F104: CONVENTION D’HOSPITALITÉ
A105: Jacques FECHTENBAUM | B105: Médecin | C105: MSD France | D105: 01/12/2013 | E105: 01/12/2013 - 03/12/2013 | F105: CONVENTION D’HOSPITALITÉ
A106: Jacques FECHTENBAUM | B106: Médecin | C106: LES LABORATOIRES SERVIER | D106: 31/01/2014 | E106: 31/01/2014 - | F106: Autre : Intervenant (Orateur/ Modérateur/ Président...)
A107: Jacques FECHTENBAUM | B107: Médecin | C107: ROCHE SAS | D107: 05/02/2014 | E107: 05/02/2014 - 05/02/2014 | F107: Autre : [ R‚union professionnelle ]
A108: Jacques FECHTENBAUM | B108: Médecin | C108: Laboratoires Expanscience | D108: 25/03/2014 | E108: 25/03/2014 - 25/03/2014 | F108: Formation
A109: Jacques FECHTENBAUM | B109: Médecin | C109: Laboratoires Expanscience | D109: 05/05/2014 | E109: 05/05/2014 - 07/05/2014 | F109: Congrès / Symposium
A110: Jacques FECHTENBAUM | B110: Médecin | C110: MSD France | D110: 20/05/2014 | E110: 20/05/2014 - | F110: CONVENTION D’HOSPITALITÉ
A111: Jacques FECHTENBAUM | B111: Médecin | C111: MSD France | D111: 12/06/2014 | E111: 12/06/2014 - | F111: CONVENTION D’HOSPITALITÉ
A112: Jacques FECHTENBAUM | B112: Médecin | C112: NORDIC PHARMA SAS | D112: 25/06/2014 | E112: 25/06/2014 - | F112: RECHERCHE
A113: Jacques FECHTENBAUM | B113: Médecin | C113: Lilly France SAS | D113: 28/09/2014 | E113: 27/09/2014 - 28/09/2014 | F113: AUTRE : [PARTICIPATION R�ION SCIENTIFIQUE]
A114: Jacques FECHTENBAUM | B114: Médecin | C114: PFIZER SAS | D114: 30/09/2014 | E114: 30/09/2014 - 30/09/2014 | F114: Autre : Réunion professionnelle ou scientifique
A115: Jacques FECHTENBAUM | B115: Médecin | C115: MSD France | D115: 05/02/2015 | E115: 05/02/2015 - | F115: CONVENTION D’HOSPITALITÉ
A116: Jacques FECHTENBAUM | B116: Médecin | C116: Laboratoires Expanscience | D116: 21/05/2015 | E116: 21/05/2015 - 21/05/2015 | F116: Formation
A117: Jacques FECHTENBAUM | B117: Médecin | C117: PFIZER SAS | D117: 10/06/2015 | E117: 10/06/2015 - 13/06/2015 | F117: Congres / Symposium
A118: Jacques FECHTENBAUM | B118: Médecin | C118: AMGEN SAS | D118: 24/07/2015 | E118: 08/10/2015 - 08/10/2015 | F118: Autre [CONVENTION D ORATEUR]
A119: Jacques FECHTENBAUM | B119: Médecin | C119: MSD France | D119: 16/09/2015 | E119: 16/09/2015 - | F119: CONVENTION D’HOSPITALITÉ
A120: Jacques FECHTENBAUM | B120: Médecin | C120: AbbVie | D120: 18/09/2015 | E120: 18/09/2015 - | F120: AUTRE: [CONVENTION HOSPITALITE]
A121: Jacques FECHTENBAUM | B121: Médecin | C121: AMGEN SAS | D121: 08/10/2015 | E121: 08/10/2015 - 08/10/2015 | F121: AUTRE [CONTRAT D ORATEUR]
A122: Jacques FECHTENBAUM | B122: Médecin | C122: AMGEN SAS | D122: 08/10/2015 | E122: 08/10/2015 - 08/10/2015 | F122: Autre [CONVENTION D HOSPITALITE]
A123: Jacques FECHTENBAUM | B123: Médecin | C123: MSD France | D123: 10/12/2015 | E123: 10/12/2015 - | F123: CONVENTION D’HOSPITALITÉ
A124: Véronique GAUD-LISTRAT | B124: Médecin | C124: ROTTAPHARM SAS | D124: 06/06/2012 | E124: 06/06/2012 - 09/06/2012 | F124: EULAR
A125: Véronique GAUD-LISTRAT | B125: Médecin | C125: MSD France | D125: 24/10/2012 | E125: 24/10/2012 - | F125: CONVENTION D’HOSPITALITÉ
A126: Véronique GAUD-LISTRAT | B126: Médecin | C126: AbbVie | D126: 11/04/2013 | E126: 11/04/2013 - | F126: AUTRE : [CONTRAT DE COLLABORATION SCIENTIFIQUE]
A127: Véronique GAUD-LISTRAT | B127: Médecin | C127: AbbVie | D127: 11/04/2013 | E127: 11/04/2013 - | F127: AUTRE : [CONTRAT DE COLLABORATION SCIENTIFIQUE]
A128: Véronique GAUD-LISTRAT | B128: Médecin | C128: AbbVie | D128: 26/04/2013 | E128: 26/04/2013 - | F128: AUTRE: [CONTRAT DE COLLABORATION SCIENTIFIQUE]
A129: Véronique GAUD-LISTRAT | B129: Médecin | C129: ASTRAZENECA | D129: 10/09/2013 | E129: 10/09/2013 - | F129: Formation
A130: Véronique GAUD-LISTRAT | B130: Médecin | C130: UCB Pharma SA | D130: 20/09/2013 | E130: 20/09/2013 - 21/09/2013 | F130: congrès / symposium
A131: Véronique GAUD-LISTRAT | B131: Médecin | C131: UCB Pharma SA | D131: 15/10/2013 | E131: 15/10/2013 - 15/10/2013 | F131: Autre : [ hospitalité liée à une manifestation scientifique ]
A132: Véronique GAUD-LISTRAT | B132: Médecin | C132: MSD France | D132: 23/10/2013 | E132: 23/10/2013 - | F132: CONVENTION D’HOSPITALITÉ
A133: Véronique GAUD-LISTRAT | B133: Médecin | C133: ROTTAPHARM SAS | D133: 24/10/2013 | E133: 01/12/2013 - 03/12/2013 | F133: 26E CONGRES FRANÇAIS DE RHUMATOLOGIE
A134: Véronique GAUD-LISTRAT | B134: Médecin | C134: AbbVie | D134: 07/11/2013 | E134: 07/11/2013 - | F134: RECHERCHE
A135: Véronique GAUD-LISTRAT | B135: Médecin | C135: Lilly France SAS | D135: 22/11/2013 | E135: 22/11/2013 - 22/11/2013 | F135: INVITATION
A136: Véronique GAUD-LISTRAT | B136: Médecin | C136: ROCHE SAS | D136: 05/02/2014 | E136: 05/02/2014 - 05/02/2014 | F136: Autre : [ R‚union professionnelle ]
A137: Véronique GAUD-LISTRAT | B137: Médecin | C137: Laboratoires Expanscience | D137: 25/03/2014 | E137: 25/03/2014 - 25/03/2014 | F137: Formation
A138: Véronique GAUD-LISTRAT | B138: Médecin | C138: ASTRAZENECA | D138: 13/05/2014 | E138: 13/05/2014 - | F138: Formation
A139: Véronique GAUD-LISTRAT | B139: Médecin | C139: MSD France | D139: 20/05/2014 | E139: 20/05/2014 - | F139: CONVENTION D’HOSPITALITÉ
A140: Véronique GAUD-LISTRAT | B140: Médecin | C140: Lilly France SAS | D140: 25/05/2014 | E140: 24/05/2014 - 25/05/2014 | F140: AUTRE : [PARTICIPATION RÉUNION SCIENTIFIQUE]
A141: Véronique GAUD-LISTRAT | B141: Médecin | C141: UCB Pharma SA | D141: 11/06/2014 | E141: 11/06/2014 - 14/06/2014 | F141: Congrès / symposium
A142: Véronique GAUD-LISTRAT | B142: Médecin | C142: Arthritis Fondation Courtin | D142: 09/07/2014 | E142: 09/07/2014 - | F142: CONVENTION RECHERCHE
A143: Véronique GAUD-LISTRAT | B143: Médecin | C143: ASTRAZENECA | D143: 09/09/2014 | E143: 09/09/2014 - | F143: Formation
A144: Véronique GAUD-LISTRAT | B144: Médecin | C144: PFIZER SAS | D144: 16/09/2014 | E144: 16/09/2014 - 16/09/2014 | F144: Autre : Réunion professionnelle ou scientifique
A145: Véronique GAUD-LISTRAT | B145: Médecin | C145: NORDIC PHARMA SAS | D145: 14/10/2014 | E145: 14/10/2014 - | F145: RECHERCHE
A146: Véronique GAUD-LISTRAT | B146: Médecin | C146: PFIZER SAS | D146: 02/12/2014 | E146: 02/12/2014 - 02/12/2014 | F146: Autre : Réunion professionnelle ou scientifique
A147: Véronique GAUD-LISTRAT | B147: Médecin | C147: ROCHE SAS | D147: 23/01/2015 | E147: 23/01/2015 - 23/01/2015 | F147: Congrs / Symposium
A148: Véronique GAUD-LISTRAT | B148: Médecin | C148: PFIZER SAS | D148: 06/02/2015 | E148: 06/02/2015 - 07/02/2015 | F148: Autre : Reunion professionnelle ou scientifique
A149: Véronique GAUD-LISTRAT | B149: Médecin | C149: BRISTOL-MYERS SQUIBB | D149: 19/03/2015 | E149: 19/03/2015 - | F149: Autre : [Orateur]
A150: Véronique GAUD-LISTRAT | B150: Médecin | C150: PFIZER SAS | D150: 10/06/2015 | E150: 10/06/2015 - 13/06/2015 | F150: Congres / Symposium
A151: Véronique GAUD-LISTRAT | B151: Médecin | C151: MSD France | D151: 16/09/2015 | E151: 16/09/2015 - | F151: CONVENTION D’HOSPITALITÉ
A152: Véronique GAUD-LISTRAT | B152: Médecin | C152: PIERRE FABRE MEDICAMENT | D152: 08/10/2015 | E152: 08/10/2015 - | F152: CONVENTION D'HOSPITALITE
A153: Véronique GAUD-LISTRAT | B153: Médecin | C153: AbbVie | D153: 06/11/2015 | E153: 06/10/2015 - 06/10/2015 | F153: AUTRE: [CONVENTION HOSPITALITE]
A154: Véronique GAUD-LISTRAT | B154: Médecin | C154: ASTRAZENECA | D154: 17/11/2015 | E154: 17/11/2015 - | F154: formation
A155: Véronique GAUD-LISTRAT | B155: Médecin | C155: Laboratoires Expanscience | D155: 13/12/2015 | E155: 13/12/2015 - 13/12/2015 | F155: Formation
A156: Véronique GAUD-LISTRAT | B156: Médecin | C156: ROCHE SAS | D156: 13/12/2015 | E156: 13/12/2015 - 15/12/2015 | F156: Congres / Symposium
A157: Christophe HUDRY | B157: Médecin | C157: ROCHE SAS | D157: 18/04/2012 | E157: 18/04/2012 - | F157: ORATEUR INTERVENANT
A158: Christophe HUDRY | B158: Médecin | C158: MSD France | D158: 12/06/2012 | E158: 12/06/2012 - | F158: CONVENTION D HOSPITALITE
A159: Christophe HUDRY | B159: Médecin | C159: MSD France | D159: 24/10/2012 | E159: 24/10/2012 - | F159: CONVENTION D HOSPITALITE
A160: Christophe HUDRY | B160: Médecin | C160: PFIZER SAS | D160: 12/06/2013 | E160: 12/06/2013 - 15/06/2013 | F160: HOSPITALITE RP/CONGRES / SYMPO
A161: Christophe HUDRY | B161: Médecin | C161: AbbVie | D161: 01/07/2013 | E161: 01/07/2013 - | F161: AUTRE: [CONTRAT DE COLLABORATION SCIENTIFIQUE]
A162: Christophe HUDRY | B162: Médecin | C162: MSD France | D162: 10/07/2013 | E162: 10/07/2013 - | F162: CONVENTION D HOSPITALITE
A163: Christophe HUDRY | B163: Médecin | C163: AbbVie | D163: 20/08/2013 | E163: 20/09/2013 - | F163: AUTRE: [CONTRAT DE COLLABORATION SCENTIFIQUE]
A164: Christophe HUDRY | B164: Médecin | C164: PFIZER SAS | D164: 12/09/2013 | E164: 12/09/2013 - | F164: ORATEUR RP/CONGRES/SYMPOSIUM
A165: Christophe HUDRY | B165: Médecin | C165: PFIZER SAS | D165: 20/09/2013 | E165: 20/09/2013 - 21/09/2013 | F165: Orateur RP/Congres/Sympo
A166: Christophe HUDRY | B166: Médecin | C166: MSD France | D166: 11/10/2013 | E166: 13/11/2013 - 13/11/2013 | F166: ORATEUR
A167: Christophe HUDRY | B167: Médecin | C167: MSD France | D167: 11/10/2013 | E167: 11/10/2013 - | F167: ORATEUR
A168: Christophe HUDRY | B168: Médecin | C168: MSD France | D168: 23/10/2013 | E168: 23/10/2013 - | F168: CONVENTION D HOSPITALITE
A169: Christophe HUDRY | B169: Médecin | C169: MSD France | D169: 13/11/2013 | E169: 13/11/2013 - | F169: CONVENTION D HOSPITALITE
A170: Christophe HUDRY | B170: Médecin | C170: MSD France | D170: 01/12/2013 | E170: 01/12/2013 - 03/12/2013 | F170: CONVENTION D HOSPITALITE
A171: Christophe HUDRY | B171: Médecin | C171: AbbVie | D171: 12/12/2013 | E171: 12/12/2013 - | F171: AUTRE: [CONVENTION HOSPITALITE]
A172: Christophe HUDRY | B172: Médecin | C172: BRISTOL-MYERS SQUIBB | D172: 01/02/2014 | E172: 01/02/2014 - | F172: Autre : [Recherche/Développement]
A173: Christophe HUDRY | B173: Médecin | C173: Bristol-Myers Squibb EMEA | D173: 05/02/2014 | E173: 05/02/2014 - | F173: Autre : [Recherche biomédicale]
A174: Christophe HUDRY | B174: Médecin | C174: ROCHE SAS | D174: 05/02/2014 | E174: 05/02/2014 - 05/02/2014 | F174: Autre : [ R‚union professionnelle ]
A175: Christophe HUDRY | B175: Médecin | C175: BRISTOL-MYERS SQUIBB | D175: 06/02/2014 | E175: 06/02/2014 - | F175: Autre : [Orateur]
A176: Christophe HUDRY | B176: Médecin | C176: Laboratoires Expanscience | D176: 25/03/2014 | E176: 25/03/2014 - 25/03/2014 | F176: Formation
A177: Christophe HUDRY | B177: Médecin | C177: AbbVie | D177: 15/04/2014 | E177: 15/04/2014 - | F177: AUTRE: [CONTRAT DE COLLABORATION SCIENTIFIQUE]
A178: Christophe HUDRY | B178: Médecin | C178: MSD France | D178: 24/04/2014 | E178: 04/06/2014 - 31/12/2014 | F178: EXPERT
A179: Christophe HUDRY | B179: Médecin | C179: MSD France | D179: 11/06/2014 | E179: 11/06/2014 - | F179: CONVENTION D HOSPITALITE
A180: Christophe HUDRY | B180: Médecin | C180: UCB Pharma SA | D180: 13/06/2014 | E180: 13/06/2014 - 30/09/2014 | F180: Conseil
A181: Christophe HUDRY | B181: Médecin | C181: MSD France | D181: 17/06/2014 | E181: 17/06/2014 - | F181: CONVENTION D HOSPITALITE
A182: Christophe HUDRY | B182: Médecin | C182: LABORATOIRES GENEVRIER | D182: 24/07/2014 | E182: 26/09/2014 - 26/09/2014 | F182: FORMATION
A183: Christophe HUDRY | B183: Médecin | C183: NORDIC PHARMA SAS | D183: 29/08/2014 | E183: 29/08/2014 - | F183: RECHERCHE
A184: Christophe HUDRY | B184: Médecin | C184: UCB Pharma SA | D184: 11/09/2014 | E184: 11/09/2014 - 30/11/2014 | F184: Conseil
A185: Christophe HUDRY | B185: Médecin | C185: UCB Pharma SA | D185: 16/10/2014 | E185: 16/10/2014 - 16/10/2014 | F185: Autre : [ hospitalité liée à une manifestation scientifique ]
A186: Christophe HUDRY | B186: Médecin | C186: BRISTOL-MYERS SQUIBB | D186: 30/10/2014 | E186: 02/12/2014 - | F186: Autre : [Orateur]
A187: Christophe HUDRY | B187: Médecin | C187: CELGENE | D187: 30/10/2014 | E187: 16/11/2014 - 26/11/2014 | F187: CONSEIL
A188: Christophe HUDRY | B188: Médecin | C188: PFIZER SAS | D188: 07/12/2014 | E188: 07/12/2014 - 09/12/2014 | F188: Congrès / Symposium
A189: Christophe HUDRY | B189: Médecin | C189: PFIZER SAS | D189: 15/12/2014 | E189: 05/03/2015 - 05/03/2015 | F189: Autre : Contrat intervenant
A190: Christophe HUDRY | B190: Médecin | C190: ROCHE SAS | D190: 30/01/2015 | E190: 29/01/2015 - 30/01/2015 | F190: Autre : [ Expert ]
A191: Christophe HUDRY | B191: Médecin | C191: UCB Pharma SA | D191: 03/03/2015 | E191: 08/04/2015 - 08/04/2015 | F191: Autre : [ Collaboration Scientifique ]
A192: Christophe HUDRY | B192: Médecin | C192: PFIZER SAS | D192: 05/03/2015 | E192: 05/03/2015 - 05/03/2015 | F192: Autre : Reunion professionnelle ou scientifique
A193: Christophe HUDRY | B193: Médecin | C193: ROCHE SAS | D193: 10/03/2015 | E193: 10/03/2015 - 10/03/2015 | F193: Autre : [ Runion professionnelle ]
A194: Christophe HUDRY | B194: Médecin | C194: ROCHE SAS | D194: 12/03/2015 | E194: 10/03/2015 - 10/03/2015 | F194: Autre : [ Orateur / Intervenant ]
A195: Christophe HUDRY | B195: Médecin | C195: AbbVie | D195: 30/03/2015 | E195: 30/03/2015 - | F195: AUTRE : [CONTRAT DE COLLABORATION SCIENTIFIQUE]
A196: Christophe HUDRY | B196: Médecin | C196: MSD France | D196: 27/04/2015 | E196: 26/05/2015 - 25/05/2016 | F196: EXPERT
A197: Christophe HUDRY | B197: Médecin | C197: AbbVie | D197: 08/06/2015 | E197: 09/06/2015 - 09/06/2015 | F197: AUTRE: [CONVENTION HOSPITALITE]
A198: Christophe HUDRY | B198: Médecin | C198: MSD France | D198: 24/07/2015 | E198: 16/09/2015 - 16/09/2015 | F198: ORATEUR
A199: Christophe HUDRY | B199: Médecin | C199: NORDIC PHARMA SAS | D199: 26/08/2015 | E199: 26/08/2015 - | F199: RECHERCHE
A200: Christophe HUDRY | B200: Médecin | C200: PFIZER SAS | D200: 08/09/2015 | E200: 11/09/2015 - 12/09/2015 | F200: Congrès / Symposium
... 282 more rows

Sheet AVANTAGES
A1: TYPE_AVTG dans Transparence.sante.gouv.fr | B1: TYPE_AVTG (libellé de regroupement)
A2: [Autre] inscription congrès | B2: Inscription
A3: [HOSPITALITE] | B3: Hospitalité
A4: [REPAS] | B4: Repas
A5: AUTRE | B5: Autre
A6: Autre : [ Forfait journée détude ] | B6: Autre
A7: Autre : [ Forfait journée détude ou forfait congrès ] | B7: Congrès
A8: Autre : [ Inscription ] | B8: Inscription
A9: Autre : [ECHANTILLON] | B9: Autre
A10: Autre : [HONORAIRE] | B10: Autre
A11: Autre : [Hospitalité Evenement Scientifique] | B11: Hospitalité
A12: AUTRE : [HOSPITALITE] | B12: Hospitalité
A13: AUTRE : [INSCRIPTION CONGRÈS SCIENTIFIQUE] | B13: Inscription
A14: Autre : [Inscription Evenement Scientifique] | B14: Inscription
A15: Autre : [Inscription] | B15: Inscription
A16: Autre : [note de frais] | B16: Autre
A17: AUTRE : [PARTICIPATION EVENEMENT SCIENTIFIQUE] | B17: Congrès
A18: AUTRE : [PAUSE] | B18: Autre
A19: Autre : [Remboursement de frais] | B19: Autre
A20: AUTRE : [REMBOURSEMENT FRAIS LOGISTIQUE] | B20: Autre
A21: Autre : [Restauration] | B21: Repas
A22: AUTRE : CONGRES | B22: Autre
A23: AUTRE : FORMATION MEDICALE CONTINUE | B23: Autre
A24: Autre : Frais d'inscription Congrès | B24: Inscription
A25: AUTRE : HONORAIRE CONFERENCE TELEPHONIQUE | B25: Autre
A26: AUTRE : HONORAIRES CONFERENCE TELEPHONIQUE | B26: Autre
A27: AUTRE : HOSPITALITE CONGRES | B27: Congrès
A28: Autre : Indemnite | B28: Autre
A29: Autre : Inscription | B29: Inscription
A30: AUTRE : RELATIONS NORMALES DE TRAVAIL | B30: Autre
A31: AUTRE : REMBOURSEMENT DE FRAIS | B31: Autre
A32: AUTRE : REPAS PROFESSIONNEL | B32: Repas
A33: AUTRE : REUNION | B33: Autre
A34: AUTRE : RNT | B34: Autre
A35: AUTRE [ENQUETE] | B35: Autre
A36: AUTRE [FRAIS D INSCRIPTION] | B36: Inscription
A37: AUTRE [INSCRIPTION] | B37: Inscription
A38: AUTRE [PAUSE] | B38: Autre
A39: AUTRE [RESTAURATION STAFF] | B39: Repas
A40: Autre: [Enquête] | B40: Autre
A41: AUTRE: [INSCRIPTION] | B41: Inscription
A42: AUTRE: DEJEUNER | B42: Repas
A43: AUTRE: DEJEUNER/RESTO ITALIEN BON | B43: Repas
A44: AUTRE: INSCRIPTION | B44: Inscription
A45: AUTRE: SOIREE/SOIREE | B45: Autre
A46: AUTRES | B46: Autre
A47: AUTRES: INSCRIPTION | B47: Inscription
A48: CADEAUX | B48: Autre
A49: COLLATION | B49: Repas
A50: CONGRES/INSCRIPTION | B50: Inscription
A51: conseil | B51: Conseil
A52: Dédommagement | B52: Autre
A53: DEJEUNER | B53: Repas
A54: déjeuner | B54: Repas
A55: DEJEUNER/DEJEUNER | B55: Repas
A56: DEJEUNER/REPAS | B56: Repas
A57: Déplacement | B57: Transport
A58: Dons de fonctionnement | B58: Autre
A59: Droits d'auteur pris en charge par UCB | B59: Autre
A60: enquête | B60: Autre
A61: EPU | B61: Repas
A62: EPU/DINER | B62: Repas
A63: FRAIS DE BOUCHE | B63: Repas
A64: Frais de dÃƒÂ©placement | B64: Transport
A65: FRAIS DE DEPLACEMENT | B65: Transport
A66: Frais remboursés (transport) | B66: Transport
A67: H‚bergement | B67: Hébergement
A68: HÃ©bergement | B68: Hébergement
A69: HÃ‰BERGEMENT | B69: Hébergement
A70: HEBERGEMENT | B70: Hébergement
A71: Hébergement | B71: Hébergement
A72: Hébérgement | B72: Hébergement
A73: HEBERGEMENT SUR TOUTE LA DUREE DU CONGRES | B73: Hébergement
A74: Hébergement, restauration, transport | B74: Hospitalité
A75: HOSPITALITE | B75: Hospitalité
A76: HOSPITALITÉ | B76: Hospitalité
A77: HOSPITALITE - RELATIONS NORMALES DE TRAVAIL | B77: Hospitalité
A78: HOSPITALITE CONGRES | B78: Hospitalité
A79: HOSPITALITE STAFF | B79: Hospitalité
A80: INCRIPTION | B80: Inscription
A81: INDEMNITE | B81: Autre
A82: INSCRIPTION | B82: Inscription
A83: INSCRIPTION CONGRES | B83: Inscription
A84: INVITATIONS | B84: Autre
A85: Logement | B85: Hébergement
A86: Prestation en tant que formateur et orateur | B86: Autre
A87: Repas | B87: Repas
A88: REPAS CONGRES | B88: Repas
A89: REPAS IMPROMPTU | B89: Repas
A90: REPAS MANIFESTATION DE FORMATION | B90: Repas
A91: REPAS PROFESSIONNEL | B91: Repas
A92: REPAS RELATION NORMALE DE TRAVAIL | B92: Repas
A93: REPAS REUNION | B93: Repas
A94: REPAS RÉUNION HOSPITALIÈRE | B94: Repas
A95: REPAS REUNION SCIENTIFIQUE | B95: Repas
A96: REPAS SUR TOUTE LA DUREE DU CONGRES | B96: Repas
A97: Restauration | B97: Repas
A98: SOIREE | B98: Repas
A99: SOIREE/REPAS | B99: Repas
A100: SOIREE/RP | B100: Autre
A101: STAFF | B101: Autre
A102: Taxonomie EFPIA | B102: Autre
A103: TRANBSPORT | B103: Transport
A104: TRANSFERT-REPAS(DINER) | B104: Repas
A105: Transport | B105: Transport
A106: TRANSPORT ALLER/RETOUR -REPAS(DINERS-DEJEUNERS-PAUSES)-HEBERGEMENT-TRANSFERT | B106: Hospitalité
A107: Transport pris en charge par UCB | B107: Transport
A108: VISITE/(2 X GO-ON 25MG) | B108: Autre
A109: VISITE/(3 X GO-ON 25MG) | B109: Autre
A110: VISITE/GO-ON 25MG | B110: Autre

Sheet CONVENTIONS
A1: TYPE_CONVENTION dans Transparence.sante.gouv.fr | B1: TYPE_CONVENTION (libellé de regroupement)
A2: [AUTRE] : [COLLABORATION SCIENTIFIQUE] | B2: Expert
A3: [AUTRE] : [CONVENTION HOSPITALITE] | B3: Hospitalité
A4: [BOARD EXPERTS] | B4: Réunion de « Board »
A5: [MARKETING] | B5: Etude de marché
A6: [MARKETING] | B6: Etude de marché
A7: [ORATEUR] | B7: Orateur
A8: [ORATEURS MODERATEURS] | B8: Orateur
A9: [REUNION INFORMATION MEDICALE] | B9: Réunion professionnelle
A10: 26E CONGRES FRANÇAIS DE RHUMATOLOGIE | B10: Réunion professionnelle
A11: AMERICAN COLLEGE OF RHEUMATHOLOGY ACR/ARHP ANNUAL MEETING 2012 | B11: Réunion professionnelle
A12: ASSISES BARCELONE | B12: Réunion professionnelle
A13: AUTRE | B13: Autre
A14: AUTRE | B14: Autre
A15: Autre : [ Collaboration Scientifique ] | B15: Expert
A16: Autre : [ Collaboration Scientifique ] | B16: Expert
A17: Autre : [ EPU ] | B17: Réunion professionnelle
A18: Autre : [ EPU ] | B18: Réunion professionnelle
A19: Autre : [ Expert ] | B19: Expert
A20: Autre : [ Expert ] | B20: Expert
A21: Autre : [ hospitalité liée à une manifestation scientifique ] | B21: Hospitalité
A22: Autre : [ hospitalité liée à une manifestation scientifique ] | B22: Hospitalité
A23: Autre : [ Manifestation professionnelle ] | B23: Réunion professionnelle
A24: Autre : [ Orateur / Intervenant ] | B24: Orateur
A25: Autre : [ Orateur ] | B25: Orateur
A26: Autre : [ Prestation ] | B26: Conseil
A27: Autre : [ R‚union professionnelle ] | B27: Réunion professionnelle
A28: Autre : [ R‚union professionnelle ] | B28: Réunion professionnelle
A29: Autre : [ Runion professionnelle ] | B29: Réunion professionnelle
A30: Autre : [ Runion professionnelle ] | B30: Réunion professionnelle
A31: Autre : [ Reunion professionnelle ] | B31: Réunion professionnelle
A32: Autre : [ Réunion professionnelle ] | B32: Réunion professionnelle
A33: Autre : [ Reunion professionnelle ] | B33: Réunion professionnelle
A34: Autre : [ Réunion professionnelle ] | B34: Réunion professionnelle
A35: Autre : [collaboration scientifique] | B35: Expert
A36: Autre : [Communication scientifique] | B36: Expert
A37: Autre : [Communication scientifique] | B37: Conseil
A38: Autre : [Consultant (HCP)] | B38: Conseil
A39: Autre : [Consultant (HCP)] | B39: Conseil
A40: Autre : [Consultant] | B40: Conseil
A41: Autre : [Contrat autre] | B41: Autre
A42: Autre : [Contrat autre] | B42: Autre
A43: AUTRE : [CONTRAT DE COLLABORATION SCIENTIFIQUE] | B43: Expert
A44: AUTRE : [CONTRAT DE COLLABORATION SCIENTIFIQUE] | B44: Expert
A45: AUTRE : [CONTRAT DE CONSEIL & PRESTATION] | B45: Conseil
A46: AUTRE : [CONTRAT DE CONSEIL & PRESTATION] | B46: Conseil
A47: AUTRE : [CONTRAT D'ORATEUR] | B47: Orateur
A48: AUTRE : [CONTRAT D'ORATEUR] | B48: Orateur
A49: Autre : [CONTRAT_DE_PRESTATIONS_DE_SERVICES] | B49: Conseil
A50: AUTRE : [CONVENTION D HOSPITALITE] | B50: Hospitalité
A51: AUTRE : [CONVENTION D HOSPITALITE] | B51: Hospitalité
A52: Autre : [Convention d’Hospitalité] | B52: Hospitalité
A53: Autre : [CONVENTION D'HOSPITALITE] | B53: Hospitalité
A54: Autre : [Convention d'hospitalité] | B54: Hospitalité
A55: AUTRE : [CONVENTION HOSPITALITE] | B55: Hospitalité
A56: AUTRE : [CONVENTION SANS REMUNERATION]. | B56: Autre
A57: Autre : [entretien] | B57: Etude de marché
A58: Autre : [Espace publicitaire] | B58: Autre
A59: AUTRE : [ETUDE CLINIQUE] | B59: Recherche Clinique
A60: Autre : [Expertise] | B60: Expert
A61: Autre : [Face face] | B61: Autre
A62: AUTRE : [HOSPITALITÉ EVENEMENT SCIENTIFIQUE] | B62: Hospitalité
A63: Autre : [Hospitalité Evenement] | B63: Hospitalité
A64: Autre : [Hospitalité Evenement] | B64: Hospitalité
A65: Autre : [Hospitalité Genzyme] | B65: Hospitalité
A66: Autre : [Hospitalité] | B66: Hospitalité
A67: Autre : [Opération SA/Journée-Soirée] | B67: Autre
A68: Autre : [Opérations Genzyme] | B68: Autre
A69: Autre : [Orateur] | B69: Orateur
A70: Autre : [Orateur] | B70: Orateur
A71: AUTRE : [PARTICIPATION RÉUNION SCIENTIFIQUE] | B71: Réunion professionnelle
A72: AUTRE : [PARTICIPATION R�ION SCIENTIFIQUE] | B72: Réunion professionnelle
A73: AUTRE : [PARTICIPATION R�ION SCIENTIFIQUE] | B73: Réunion professionnelle
A74: Autre : [Recherche biomédicale] | B74: Recherche Clinique
A75: Autre : [Recherche biomédicale] | B75: Recherche Clinique
A76: Autre : [Recherche/Développement] | B76: Recherche Clinique
A77: Autre : [Recherche/Développement] | B77: Recherche Clinique
A78: Autre : [Réunion] | B78: Réunion professionnelle
A79: Autre : [Réunion] | B79: Réunion professionnelle
A80: AUTRE : [RP Table ronde actu Rhumatologie] | B80: Réunion professionnelle
A81: Autre : [STAFF] | B81: Réunion professionnelle
A82: Autre : Auteur - rédacteur | B82: Rédacteur
A83: Autre : Contrat consultant | B83: Conseil
A84: Autre : Contrat consultant | B84: Conseil
A85: Autre : Contrat intervenant | B85: Orateur
A86: Autre : Contrat intervenant | B86: Orateur
A87: AUTRE : CONVENTION D'HOSPITALITE | B87: Hospitalité
A88: autre : enquête téléphonique | B88: Etude de marché
A89: autre : enquête téléphonique | B89: Etude de marché
A90: autre : enquête téléphonique | B90: Etude de marché
A91: autre : enquête web | B91: Etude de marché
A92: autre : enquête web | B92: Etude de marché
A93: autre : ETUDE | B93: Etude de marché
A94: Autre : Etude de marché | B94: Etude de marché
A95: Autre : ETUDE DE MARCHE | B95: Etude de marché
A96: Autre : Etude de marché | B96: Etude de marché
A97: Autre : Intervenant (Orateur/ ModÃ©rateur/ PrÃ©sident...) | B97: Orateur
A98: Autre : Intervenant (Orateur/ Modérateur/ Président...) | B98: Orateur
A99: AUTRE : MANIFESTATION DE PROMOTION | B99: Autre
A100: Autre : Manifestation scientifique | B100: Réunion professionnelle
A101: Autre : ORATEUR REUNION POST EULAR MONTPELLIER | B101: Orateur
A102: AUTRE : PARTICIPATION A MANIFESTATION SCIENTIFIQUE | B102: Orateur
A103: Autre : Prestation de service | B103: Conseil
A104: Autre : Prestation de service | B104: Conseil
A105: AUTRE : REFLEXION SCIENTFIQUE EVENEMENT INTERDISCIPLINAIRE | B105: Conseil
A106: Autre : Reunion professionnelle ou scientifique | B106: Réunion professionnelle
A107: Autre : Réunion professionnelle ou scientifique | B107: Réunion professionnelle
A108: Autre : Reunion professionnelle ou scientifique | B108: Réunion professionnelle
A109: Autre : Réunion professionnelle ou scientifique | B109: Réunion professionnelle
A110: Autre : RP de type EPU (2007-01) | B110: Réunion professionnelle
A111: AUTRE [CONNEXION] | B111: Autre
A112: AUTRE [CONNEXION] | B112: Autre
A113: AUTRE [CONTRAT D ORATEUR] | B113: Orateur
A114: AUTRE [CONTRAT D ORATEUR] | B114: Orateur
A115: AUTRE [CONTRAT DE CONSULTANT] | B115: Conseil
A116: AUTRE [CONTRAT DE CONSULTANT] | B116: Conseil
A117: AUTRE [CONTRAT ORATEUR] | B117: Orateur
A118: AUTRE [CONTRAT ORATEUR] | B118: Orateur
A119: AUTRE [CONVENTION D EXPERT] | B119: Expert
A120: AUTRE [CONVENTION D EXPERT] | B120: Expert
A121: Autre [CONVENTION D HOSPITALITE] | B121: Hospitalité
A122: AUTRE [CONVENTION D HOSPITALITE] | B122: Hospitalité
A123: AUTRE [CONVENTION D ORATEUR] | B123: Orateur
A124: AUTRE [CONVENTION D ORATEUR] | B124: Orateur
A125: AUTRE [CONVENTION HOSPITALITE] | B125: Hospitalité
A126: AUTRE [EXPERT] | B126: Expert
A127: AUTRE [EXPERT] | B127: Expert
A128: AUTRE ETUDE DE MARCHE | B128: Etude de marché
A129: AUTRE: [CONTRAT DE COLLABORATION SCENTIFIQUE] | B129: Expert
A130: AUTRE: [CONTRAT DE COLLABORATION SCENTIFIQUE] | B130: Expert
A131: AUTRE: [CONTRAT DE COLLABORATION SCIENTIFIQUE] | B131: Expert
A132: AUTRE: [CONTRAT DE COLLABORATION SCIENTIFIQUE] | B132: Expert
A133: AUTRE: [CONVENTION HOSPITALITE] | B133: Hospitalité
A134: AUTRE: [CONVENTION HOSPITALITE] | B134: Hospitalité
A135: AUTRE: [ETUDE DE MARCHE] | B135: Etude de marché
A136: AUTRE: [ETUDE DE MARCHE] | B136: Etude de marché
A137: Autre: Collaboration pour une Etude de Marché | B137: Etude de marché
A138: Autre: Collaboration pour une Etude de Marché | B138: Etude de marché
A139: AUTRE: COLLABORATION POUR UNE ETUDE DE MARCHÉ | B139: Etude de marché
A140: AUTRE: CONVENTION D'HOSPITALITE | B140: Hospitalité
A141: autre: ETUDE | B141: Etude de marché
A142: AUTRE: ETUDES DE MARCHE SONDAGES | B142: Etude de marché
A143: Autre: Intervenant | B143: Orateur
A144: autre: REDACTION D'ARTICLES | B144: Rédacteur
A145: AUTRE[EXPERTISE] | B145: Expert
A146: Autre[INTERVENTION REUNION P EULAR LYON LE 2 JUILLET] | B146: Orateur
A147: Autre[ORATEUR REUNION POST EULAR AGEN] | B147: Orateur
A148: Autre[ORATEUR REUNION POST EULAR BORDEAUX] | B148: Orateur
A149: Autre[ORATEUR REUNION POST EULAR ROUEN] | B149: Orateur
A150: Autre[ORATEUR REUNION POST EULAR TOULOUSE] | B150: Orateur
A151: Autre[ORATEUR REUNION POST EULAR TOURS] | B151: Orateur
A152: Board | B152: Réunion de « Board »
A153: Collaboration Editions Scientifiques | B153: Rédacteur
A154: Collaboration Scientifique - Conseil | B154: Conseil
A155: COLLABORATION SCIENTIFIQUE ET PROFESSIONNELLE | B155: Expert
A156: Comite Echange scientifique | B156: Expert
A157: Comite Expert | B157: Expert
A158: COMITE SCIENTIFIQUE | B158: Expert
A159: CONFÉRENCE PRESSE | B159: Autre
A160: Congrs / Symposium | B160: Réunion professionnelle
A161: Congrs / Symposium | B161: Réunion professionnelle
A162: CongrÃ¨s / Symposium | B162: Réunion professionnelle
A163: CONGRES | B163: Réunion professionnelle
A164: Congrès | B164: Réunion professionnelle
A165: CONGRES | B165: Réunion professionnelle
A166: CONGRES / SYMPOSIUM | B166: Réunion professionnelle
A167: Congrès / symposium | B167: Réunion professionnelle
A168: Congres / Symposium | B168: Réunion professionnelle
A169: Congrès / Symposium | B169: Réunion professionnelle
A170: CONGRÈS / SYMPOSIUM/ RP | B170: Réunion professionnelle
A171: CONGRES SYMPOSIUM | B171: Réunion professionnelle
A172: CONGRES SYMPOSIUM | B172: Réunion professionnelle
A173: CONGRES, SYMPOSIUM | B173: Réunion professionnelle
A174: CONGRES/SYMPOSIUM | B174: Réunion professionnelle
A175: CONGRES/SYMPOSIUM | B175: Réunion professionnelle
A176: congrès-symposium | B176: Réunion professionnelle
A177: congrès-symposium | B177: Réunion professionnelle
A178: conseil | B178: Conseil
A179: Conseil | B179: Conseil
A180: CONSEIL | B180: Conseil
A181: Conseil et Communication Médico-Scientifique | B181: Conseil
A182: Conseil Relations professionnelles | B182: Conseil
A183: Conseil réunion d'experts | B183: Conseil
A184: CONSEIL SCIENTIFIQUE | B184: Expert
A185: Conseil, réunion d'experts | B185: Conseil
A186: Consultance | B186: Conseil
A187: Consultance (rhumatologie) | B187: Conseil
A188: Consultation Scientifique | B188: Conseil
A189: Contrat de conseil scientifique | B189: Expert
A190: CONTRAT DE CONSULTANT | B190: Conseil
A191: CONTRAT DE PRESTATION DE SERVICE | B191: Conseil
A192: Contrat de recherche interventionnelle et non-interventionnelle | B192: Recherche Clinique
A193: CONTRAT D'ORATEUR | B193: Orateur
A194: CONTRAT ORATEUR | B194: Orateur
A195: CONVENTION D HOSPITALITE | B195: Hospitalité
A196: CONVENTION D HOSPITALITE | B196: Hospitalité
A197: CONVENTION D’HOSPITALITÉ | B197: Hospitalité
A198: CONVENTION D’HOSPITALITE | B198: Hospitalité
A199: CONVENTION D’HOSPITALITÉ | B199: Hospitalité
A200: CONVENTION DE COLLABORATION | B200: Expert
... 75 more rows

Sheet FIRMES
A1: FIRME dans Transparence.sante.gouv.fr | B1: FIRME (libellé de regroupement)
A2: 22 Juillet Conseil | B2: 22 Juillet Conseil
A3: 3-D Matrix Europe SAS | B3: 3-D Matrix Europe SAS
A4: 3M Belgium bvba/sprl | B4: 3M Belgium bvba/sprl
A5: 3M Deutschland GmbH | B5: 3M Deutschland GmbH
A6: 3M France | B6: 3M France
A7: 3M MAROC | B7: 3M MAROC
A8: 3M United Kingdom PLC | B8: 3M United Kingdom PLC
A9: 3S ORTHO | B9: 3S ORTHO
A10: 4Tech Cardio Ltd | B10: 4Tech Cardio Ltd
A11: 7 MED INDUSTRIE | B11: 7 MED INDUSTRIE
A12: A a Z SANTE | B12: A a Z SANTE
A13: A DEC INTERNATIONAL INC | B13: A DEC INTERNATIONAL INC
A14: A.I.R. | B14: A.I.R.
A15: A.MENARINI diagnostics | B15: A.MENARINI diagnostics
A16: A.R.C. Pharma | B16: A.R.C. Pharma
A17: A+A | B17: A+A
A18: a2m rehateam | B18: a2m rehateam
A19: AADAIRC | B19: AADAIRC
A20: ABBOTT FRANCE | B20: ABBOTT
A21: ABBOTT HEALTHCARE SAS | B21: ABBOTT
A22: ABBOTT PRODUCTS SAS | B22: ABBOTT
A23: AbbVie | B23: AbbVie
A24: ABENA-FRANTEX | B24: ABENA-FRANTEX
A25: Abiomed GmbH | B25: Abiomed GmbH
A26: ABM | B26: ABM
A27: abmedica | B27: abmedica
A28: ABS-Bolton Medical | B28: ABS-Bolton Medical
A29: accomed | B29: accomed
A30: ACCOVION SARL | B30: ACCOVION SARL
A31: Accuray Europe | B31: Accuray Europe
A32: ACIST Europe BV | B32: ACIST Europe BV
A33: ACM | B33: ACM
A34: Acorda Therapeutics, Inc. | B34: Acorda Therapeutics, Inc.
A35: ACOUSTIQUE MEDICAL DU LITTORAL | B35: ACOUSTIQUE MEDICAL DU LITTORAL
A36: ACS-Agence Conseil Santé | B36: ACS-Agence Conseil Santé
A37: ACT+ Consulting | B37: ACT+ Consulting
A38: ACTAVIS GROUP PTC EHF | B38: ACTAVIS GROUP PTC EHF
A39: Actelion Pharmaceuticals France | B39: Actelion
A40: Actelion Pharmaceuticals Ltd | B40: Actelion
A41: ACTION D'ECLAT | B41: ACTION D'ECLAT
A42: ADAIR | B42: ADAIR
A43: ADAPSIA | B43: ADAPSIA
A44: ADDMEDICA | B44: ADDMEDICA
A45: ADEP ASSISTANCE | B45: ADEP ASSISTANCE
A46: Adept Field Solutions | B46: Adept Field Solutions
A47: ADIR ASSISTANCE | B47: ADIR ASSISTANCE
A48: Adiral Assistance | B48: Adiral Assistance
A49: ADIRAL Association d'Aide aux Traitements Ã Domicile | B49: ADIRAL Association d'Aide aux Traitements Ã Domicile
A50: ADLER ORTHO France | B50: ADLER ORTHO France
A51: Adler Ortho srl | B51: Adler Ortho srl
A52: ADS ALSACE | B52: ADS ALSACE
A53: ADS CHAMPAGNE ARDENNE | B53: ADS CHAMPAGNE ARDENNE
A54: ADS LORRAINE | B54: ADS LORRAINE
A55: ADVANCE SAS | B55: ADVANCE SAS
A56: Advanced Accelerator Applications | B56: Advanced Accelerator Applications
A57: Advanced Accelerator Applications International SA | B57: Advanced Accelerator Applications International SA
A58: ADVANCED BIONICS SARL | B58: ADVANCED BIONICS SARL
A59: Advanced Medical Services, AMS GmbH | B59: Advanced Medical Services, AMS GmbH
A60: ADVICENNE | B60: ADVICENNE
A61: Aegerion Pharmaceuticals | B61: Aegerion Pharmaceuticals
A62: AERIS Medical SAS | B62: AERIS Medical SAS
A63: AEROGEN | B63: AEROGEN
A64: AFFINITES SANTE | B64: AFFINITES SANTE
A65: Agence Conseil 3P | B65: Agence Conseil 3P
A66: Agfa HealthCare France SA | B66: Agfa HealthCare France SA
A67: AGFA Healthcare Imaging Agents France | B67: AGFA Healthcare Imaging Agents France
A68: AGILENT TECHNOLOGIES FRANCE | B68: AGILENT TECHNOLOGIES FRANCE
A69: AGIR Ã dom Assistance | B69: AGIR Ã dom Assistance
A70: Aide aux Insuffisants Respiratoires de la Région Auvergne (A.I.R.R.A.) | B70: Aide aux Insuffisants Respiratoires de la Région Auvergne (A.I.R.R.A.)
A71: AIR A DOMICILE | B71: AIR A DOMICILE
A72: AIR DE BRETAGNE | B72: AIR DE BRETAGNE
A73: AIR DOMICILE SANTE ALPES | B73: AIR DOMICILE SANTE ALPES
A74: AIR DOMICILE VALLEE DU RHONE | B74: AIR DOMICILE VALLEE DU RHONE
A75: Air Liquide European Homecare Operations Services | B75: Air Liquide European Homecare Operations Services
A76: AIR LIQUIDE MEDICAL SYSTEMS | B76: AIR LIQUIDE MEDICAL SYSTEMS
A77: AIR LIQUIDE SANTE (INTERNATIONAL) | B77: AIR LIQUIDE SANTE (INTERNATIONAL)
A78: AIR LIQUIDE SANTE FRANCE | B78: AIR LIQUIDE SANTE FRANCE
A79: AIR SANTE | B79: AIR SANTE
A80: AIRE | B80: AIRE
A81: AIREL | B81: AIREL
A82: AIXPER'F | B82: AIXPER'F
A83: AJ4MED | B83: AJ4MED
A84: ALAIN AFFLELOU FRANCHISEUR | B84: ALAIN AFFLELOU FRANCHISEUR
A85: ALAIR & AVD | B85: ALAIR & AVD
A86: Alcimed GmbH | B86: Alcimed GmbH
A87: Alcimed Inc | B87: Alcimed Inc
A88: Alcimed SARL | B88: Alcimed SARL
A89: Alcimed SAS | B89: Alcimed SAS
A90: Alcimed Sprl | B90: Alcimed Sprl
A91: Alcura France | B91: Alcura France
A92: ALERE E-SANTE SAS | B92: ALERE E-SANTE SAS
A93: ALERE SAS | B93: ALERE SAS
A94: Alexion Pharma France | B94: Alexion Pharma France
A95: ALFA WASSERMANN PHARMA | B95: ALFA WASSERMANN PHARMA
A96: Align Technology SAS | B96: Align Technology SAS
A97: Alimera Sciences France | B97: Alimera Sciences France
A98: ALISEO | B98: ALISEO
A99: Alizé Pharma SAS | B99: Alizé Pharma SAS
A100: Alizé Santé | B100: Alizé Santé
A101: ALK-Abelló | B101: ALK-Abelló
A102: ALKAPHARM | B102: ALKAPHARM
A103: All Global | B103: All Global
A104: ALLERGAN FRANCE | B104: ALLERGAN FRANCE
A105: alliance healthcare repartition | B105: alliance healthcare repartition
A106: ALLIANCE'PERF | B106: ALLIANCE'PERF
A107: ALLP MEDITEC | B107: ALLP MEDITEC
A108: ALMIRALL SAS | B108: ALMIRALL SAS
A109: ALMUS | B109: ALMUS
A110: ALPHATEC SPINE INC | B110: ALPHATEC SPINE INC
A111: ALPHEGA | B111: ALPHEGA
A112: ALPINE SCIENTIFIC | B112: ALPINE SCIENTIFIC
A113: ALSANZA sarl | B113: ALSANZA sarl
A114: ALTEOR | B114: ALTEOR
A115: alveol'air | B115: alveol'air
A116: ALVIMEDICA Medical Technologie France | B116: ALVIMEDICA Medical Technologie France
A117: AM AUDITION | B117: AM AUDITION
A118: AMADEUS SANTE | B118: AMADEUS SANTE
A119: AMC APPAREILLAGE ET MATERIEL DE CARDIOLOGIE | B119: AMC APPAREILLAGE ET MATERIEL DE CARDIOLOGIE
A120: American Medical Systems France | B120: American Medical Systems France
A121: American Orthodontics | B121: American Orthodontics
A122: AMGEN SAS | B122: Amgen
A123: AMICUS THERAPEUTICS SAS | B123: AMICUS THERAPEUTICS SAS
A124: AMO FRANCE SAS | B124: AMO FRANCE SAS
A125: AMO Germany GmbH | B125: AMO Germany GmbH
A126: AMO INC USA | B126: AMO INC USA
A127: Amplifon Groupe France | B127: Amplifon Groupe France
A128: AMPLITUDE | B128: AMPLITUDE
A129: AMS 25 | B129: AMS 25
A130: AMS 70 | B130: AMS 70
A131: AMS 88 | B131: AMS 88
A132: ANERA | B132: ANERA
A133: ANNAYAKE | B133: ANNAYAKE
A134: ANTADIR | B134: ANTADIR
A135: Antadir Assistance SAS | B135: Antadir Assistance SAS
A136: ANTHOGYR | B136: ANTHOGYR
A137: ANTILLES AUDITION GUADELOUPE | B137: ANTILLES AUDITION GUADELOUPE
A138: AOTI Ltd | B138: AOTI Ltd
A139: APARD | B139: APARD
A140: apol | B140: apol
A141: APOLLO ENDOSURGERY UK LTD | B141: APOLLO ENDOSURGERY UK LTD
A142: Applied Medical France | B142: Applied Medical France
A143: APROVA | B143: APROVA
A144: APTALIS PHARMA SAS | B144: APTALIS PHARMA SAS
A145: Aptiv Solutions | B145: Aptiv Solutions
A146: AQUILAB | B146: AQUILAB
A147: ARAIR Assistance | B147: ARAIR Assistance
A148: ARAIR Assistance S.A. | B148: ARAIR Assistance S.A.
A149: ARAIRCHAR | B149: ARAIRCHAR
A150: arard | B150: arard
A151: ARCHIMEDES PHARMA France | B151: ARCHIMEDES PHARMA France
A152: ARCOS | B152: ARCOS
A153: ARGON MEDICAL DEVICES | B153: ARGON MEDICAL DEVICES
A154: ARIAD Pharmaceuticals (France) | B154: ARIAD Pharmaceuticals (France)
A155: ARJOHUNTLEIGH | B155: ARJOHUNTLEIGH
A156: ARROW GENERIQUES SAS | B156: ARROW GENERIQUES SAS
A157: ARSENAL-CDM | B157: ARSENAL-CDM
A158: ART&COS | B158: ART&COS
A159: ARTHES | B159: ARTHES
A160: Arthrex SAS | B160: Arthrex SAS
A161: Arthritis Fondation Courtin | B161: Arthritis Fondation Courtin
A162: ArthroCare France | B162: ArthroCare France
A163: Artialis | B163: Artialis
A164: ARX SAS | B164: ARX SAS
A165: ASAHI INTECC CO., LTD. | B165: ASAHI INTECC CO., LTD.
A166: ASDIA | B166: ASDIA
A167: Asept InMed | B167: Asept InMed
A168: ASKLE SANTE | B168: ASKLE SANTE
A169: ASPEN FRANCE | B169: ASPEN FRANCE
A170: ASPIDE AESTHETIC | B170: ASPIDE AESTHETIC
A171: ASPIDE MEDICAL | B171: ASPIDE MEDICAL
A172: ASSISTANCE DU GRAND EST | B172: ASSISTANCE DU GRAND EST
A173: ASSISTANCES MEDICALES SPECIALISEES | B173: ASSISTANCES MEDICALES SPECIALISEES
A174: Association Françoise et Eugène MINKOWSKI pour la santé mentale des migrants | B174: Association Françoise et Eugène MINKOWSKI pour la santé mentale des migrants
A175: Association pour le Développement de lâ€™Enseignement et des Recherches auprès des universités des centres de recherches et des entreprises dâ€™Aquitaine (ADERA) | B175: Association pour le Développement de lâ€™Enseignement et des Recherches auprès des universités des centres de recherches et des entreprises dâ€™Aquitaine (ADERA)
A176: ASTELLAS PHARMA | B176: ASTELLAS PHARMA
A177: ASTELLAS PHARMA B.V. | B177: ASTELLAS PHARMA B.V.
A178: ASTELLAS PHARMA GLOBAL DEVELOPMENT | B178: ASTELLAS PHARMA GLOBAL DEVELOPMENT
A179: ASTELLAS PHARMA GmbH | B179: ASTELLAS PHARMA GmbH
A180: ASTELLAS PHARMA Inc | B180: ASTELLAS PHARMA Inc
A181: ASTELLAS PHARMA Ltd | B181: ASTELLAS PHARMA Ltd
A182: ASTELLAS PHARMA S.A. | B182: ASTELLAS PHARMA S.A.
A183: Astellas Pharma Singapore Pte. Ltd. | B183: Astellas Pharma Singapore Pte. Ltd.
A184: ASTELLAS PHARMACEUTICALS AE | B184: ASTELLAS PHARMACEUTICALS AE
A185: ASTON MEDICAL Anciennement SOCIETE DE GENIE MEDICAL - S.G.M. | B185: ASTON MEDICAL Anciennement SOCIETE DE GENIE MEDICAL - S.G.M.
A186: ASTRAZENECA | B186: ASTRAZENECA
A187: Athersys, Inc. | B187: Athersys, Inc.
A188: Atlantic Pharmacetuicals Ltd | B188: Atlantic Pharmacetuicals Ltd
A189: ATLANTIC SURDITE | B189: ATLANTIC SURDITE
A190: ATLANTIS DIFFUSION | B190: ATLANTIS DIFFUSION
A191: ATLANTIS DIFFUSION SAM | B191: ATLANTIS DIFFUSION SAM
A192: ATOS MEDICAL SAS | B192: ATOS MEDICAL SAS
A193: AtriCure, Inc. | B193: AtriCure, Inc.
A194: AUDARMOR | B194: AUDARMOR
A195: Audika Groupe SA | B195: Audika Groupe SA
A196: audio acoustique sud | B196: audio acoustique sud
A197: AUDIOCONSULTING | B197: AUDIOCONSULTING
A198: AUDIOELYSCAU | B198: AUDIOELYSCAU
A199: AUDIOMEDI SAS | B199: AUDIOMEDI SAS
A200: AudioNova France SAS | B200: AudioNova France SAS
... 1715 more rows

Sheet Conception
B2: Concepteur :
D4: François PESTY
D5: Pharmacien, Ancien Interne des Hôpitaux de Paris, Institut Supérieur de Gestion,
D6: Consultant indépendant,
D7: Expert-Conseil en organisation et informatisation du circuit du médicament / Optimisation des approvisionnements et des stocks pharmaceutiques / Pilotage « médico-économique » des médicaments et dispositifs médicaux / Campagne « pilotes » de visites médicalisées des délégués de l’assurance maladie sur le médicament / Pertinence des traitements médicamenteux
D12: 2, square Gay Lussac
D13: 78330 Fontenay le Fleury
D14: Francois.PESTY@Wanadoo.fr
D15: 01 30 45 03 59 / 06 88 89 53 51
B18: François PESTY est membre de l'association FORMINDEP,

Sheet Cochin, Rhumato B
A1: Pr Maxime DOUGADOS | B1: Chef de service | C1: Hôpital COCHIN - Rhumato B
A2: Dr Xavier AYRAL | C2: Hôpital COCHIN - Rhumato B
A3: Dr Anne BEHR=BLANCHAIS | C3: Hôpital COCHIN - Rhumato B
A4: Dr Karine BRIOT | C4: Hôpital COCHIN - Rhumato B
A5: Dr Joel DAMIANO | C5: Hôpital COCHIN - Rhumato B
A6: Dr Jacques FECHTENBAUM | C6: Hôpital COCHIN - Rhumato B
A7: Dr Veronique GAUD LISTRAT | C7: Hôpital COCHIN - Rhumato B
A8: Dr Christophe HUDRY | C8: Hôpital COCHIN - Rhumato B
A9: Dr Jose JUHEL | C9: Hôpital COCHIN - Rhumato B
A10: Dr Sami KOLTA | C10: Hôpital COCHIN - Rhumato B
A11: Dr Matthieu LAVIELLE | C11: Hôpital COCHIN - Rhumato B
A12: Dr Agnes LEBRUN-FOISNET | C12: Hôpital COCHIN - Rhumato B
A13: Pr Corinne MICELI | C13: Hôpital COCHIN - Rhumato B
A14: Dr Anna MOLTO | C14: Hôpital COCHIN - Rhumato B
A15: Dr Severine NEVEU ROGEZ | C15: Hôpital COCHIN - Rhumato B
A16: Dr Minh NGUYEN | C16: Hôpital COCHIN - Rhumato B
A17: Pr Christian ROUX | C17: Hôpital COCHIN - Rhumato B
A18: Dr Axelle SALCION PICAUD | C18: Hôpital COCHIN - Rhumato B

Sheet Tableaux de synthèse
C3: Synthèse | F3: Avantages perçus | N3: Conventions signées | Y3: Montants des avantages versés par les entreprises - Montants des avantages versés par les entreprises - Montants des avantages versés par les entreprises - Montants des avantages versés | BO3: Nombres d'avantages versés par les entreprises - Nombres d'avantages versés par les entreprises - Nombres d'avantages versés par les entreprises - Nombres d'avantages versés par les entreprises - Nombres d'avantages versés par les entreprises - | DE3: Nombres de conventions signées avec les entreprises - Nombres de conventions signées avec les entreprises - Nombres de conventions signées avec les entreprises - Nombres de conventions signées avec les entreprises - Nombres de conventions signées avec les entreprises -
B4: Bénéficiaire | C4: Total avantages perçus (€) | D4: Nombre d'avantages perçus | E4: Nombre de conventions signées | F4: Transport | G4: Hébergement | H4: Repas | I4: Hospitalité | J4: Inscription | K4: Conseil | L4: Congrès | M4: Autre | N4: Hospitalité | O4: Orateur | P4: Réunion professionnelle | Q4: Expert | R4: Conseil | S4: Recherche Clinique | T4: Etude de marché | U4: Formateur | V4: Rédacteur | W4: Réunion de « Board » | X4: Autre | Y4: AbbVie | Z4: Pfizer | AA4: Regeneron Pharma | AB4: MSD France | AC4: Roche | AD4: Bristol -Myers Squibb | AE4: NOVARTIS | AF4: Lilly | AG4: Janssen-Cilag | AH4: TRB CHEMEDICA | AI4: UCB Pharma | AJ4: Amgen | AK4: ROTTAPHARM | AL4: CELGENE | AM4: Expanscience | AN4: IMPACT MEDICOM | AO4: PAREXEL International | AP4: NOVO NORDISK | AQ4: LIVE ! BY GL EVENTS | AR4: Nordic Pharma | AS4: SWEDISH ORPHAN BIOVITRUM | AT4: Icomed | AU4: ASTRAZENECA | AV4: ConsuMed Research | AW4: PIERRE FABRE MEDICAMENT | AX4: GSK | AY4: MEDEXACT | AZ4: MYLAN | BA4: GILEAD SCIENCES | BB4: MUNDIPHARMA | BC4: PRECIPHAR | BD4: GENEVRIER | BE4: Takeda France | BF4: FH ORTHOPEDICS | BG4: TEVA SANTE SAS | BH4: CHUGAI | BI4: UPSA SAS | BJ4: MEDTRONIC France S.A.S | BK4: OVERCOME | BL4: CSL BEHRING SA | BM4: ABBOTT | BN4: LES OSTEAL MEDICAL | BO4: AbbVie | BP4: MSD France | BQ4: Roche | BR4: Pfizer | BS4: Lilly | BT4: Bristol -Myers Squibb | BU4: UCB Pharma | BV4: Amgen | BW4: Regeneron Pharma | BX4: Expanscience | BY4: TRB CHEMEDICA | BZ4: NOVARTIS | CA4: Icomed | CB4: CELGENE | CC4: LIVE ! BY GL EVENTS | CD4: ROTTAPHARM | CE4: Janssen-Cilag | CF4: SWEDISH ORPHAN BIOVITRUM | CG4: PIERRE FABRE MEDICAMENT | CH4: ASTRAZENECA | CI4: MEDEXACT | CJ4: Nordic Pharma | CK4: MUNDIPHARMA | CL4: GSK | CM4: NOVO NORDISK | CN4: FH ORTHOPEDICS | CO4: MYLAN | CP4: UPSA SAS | CQ4: GENEVRIER | CR4: ABBOTT | CS4: TEVA SANTE SAS | CT4: MEDTRONIC France S.A.S | CU4: ConsuMed Research | CV4: PRECIPHAR | CW4: PAREXEL International | CX4: CHUGAI | CY4: Takeda France | CZ4: CSL BEHRING SA | DA4: LES OSTEAL MEDICAL | DB4: OVERCOME | DC4: IMPACT MEDICOM | DD4: GILEAD SCIENCES | DE4: MSD France | DF4: Pfizer | DG4: Amgen | DH4: AbbVie | DI4: Lilly | DJ4: Roche | DK4: UCB Pharma | DL4: Bristol -Myers Squibb | DM4: Expanscience | DN4: NOVARTIS | DO4: Janssen-Cilag | DP4: A+A | DQ4: Nordic Pharma | DR4: ASTRAZENECA | DS4: ROTTAPHARM | DT4: Arthritis Fondation Courtin | DU4: SANOFI-AVENTIS RECHERCHE & DEVELOPPEMENT | DV4: CHUGAI | DW4: PAREXEL International | DX4: LES SERVIER | DY4: PIERRE FABRE MEDICAMENT | DZ4: GENEVRIER | EA4: CELGENE | EB4: LIVE ! BY GL EVENTS | EC4: ICON CLINICAL RESEARCH SARL | ED4: Theorem Clinical Research SARL | EE4: SANOFI-AVENTIS GROUPE | EF4: Regeneron Pharma | EG4: CONGRES COLLOQUES CONVENTIONS | EH4: SWEDISH ORPHAN BIOVITRUM | EI4: M3 Global Research Ltd | EJ4: Alexion Pharma France | EK4: GILEAD SCIENCES
B5: Maxime DOUGADOS | C5: =SUMPRODUCT(('Avantages perçus'!$A$2:$A$30000=B5)*('Avantages perçus'!$F$2:$F$30000)) -> 46328 | D5: =COUNTIFS('Avantages perçus'!$A$2:$A$30000,B5,'Avantages perçus'!$F$2:$F$30000,">0") -> 114 | E5: =COUNTIFS('Conventions signées'!$A$2:$A$15000,B5,'Conventions signées'!$A$2:$A$15000,"*") -> 70 | F5: 26023 | G5: 1022 | H5: 2484 | I5: 526 | J5: 3463 | K5: 12586 | L5: 130 | M5: 94 | N5: 11 | O5: 11 | P5: 11 | Q5: 18 | R5: 17 | S5: 0 | T5: 0 | U5: 1 | V5: 0 | W5: 0 | X5: 1 | Y5: 11293 | Z5: 9206 | AA5: 18294 | AB5: 4810 | AC5: 148 | AD5: 1045 | AE5: 178 | AF5: 0 | AG5: 56 | AH5: 18 | AI5: 417 | AJ5: 0 | AK5: 0 | AL5: 0 | AM5: 38 | AN5: 0 | AO5: 0 | AP5: 789 | AQ5: 0 | AR5: 36 | AS5: 0 | AT5: 0 | AU5: 0 | AV5: 0 | AW5: 0 | AX5: 0 | AY5: 0 | AZ5: 0 | BA5: 0 | BB5: 0 | BC5: 0 | BD5: 0 | BE5: 0 | BF5: 0 | BG5: 0 | BH5: 0 | BI5: 0 | BJ5: 0 | BK5: 0 | BL5: 0 | BM5: 0 | BN5: 0 | BO5: 41 | BP5: 19 | BQ5: 4 | BR5: 5 | BS5: 0 | BT5: 10 | BU5: 6 | BV5: 0 | BW5: 20 | BX5: 1 | BY5: 1 | BZ5: 3 | CA5: 0 | CB5: 0 | CC5: 0 | CD5: 0 | CE5: 1 | CF5: 0 | CG5: 0 | CH5: 0 | CI5: 0 | CJ5: 1 | CK5: 0 | CL5: 0 | CM5: 2 | CN5: 0 | CO5: 0 | CP5: 0 | CQ5: 0 | CR5: 0 | CS5: 0 | CT5: 0 | CU5: 0 | CV5: 0 | CW5: 0 | CX5: 0 | CY5: 0 | CZ5: 0 | DA5: 0 | DB5: 0 | DC5: 0 | DD5: 0 | DE5: 16 | DF5: 20 | DG5: 2 | DH5: 11 | DI5: 2 | DJ5: 2 | DK5: 2 | DL5: 8 | DM5: 1 | DN5: 2 | DO5: 1 | DP5: 0 | DQ5: 0 | DR5: 0 | DS5: 0 | DT5: 0 | DU5: 1 | DV5: 0 | DW5: 0 | DX5: 0 | DY5: 0 | DZ5: 0 | EA5: 0 | EB5: 0 | EC5: 0 | ED5: 0 | EE5: 1 | EF5: 1 | EG5: 0 | EH5: 0 | EI5: 0 | EJ5: 0 | EK5: 0
B6: Corinne MICELI-RICHARD | C6: =SUMPRODUCT(('Avantages perçus'!$A$2:$A$30000=B6)*('Avantages perçus'!$F$2:$F$30000)) -> 18348 | D6: =COUNTIFS('Avantages perçus'!$A$2:$A$30000,B6,'Avantages perçus'!$F$2:$F$30000,">0") -> 102 | E6: =COUNTIFS('Conventions signées'!$A$2:$A$15000,B6,'Conventions signées'!$A$2:$A$15000,"*") -> 64 | F6: 9219 | G6: 3006 | H6: 3093 | I6: 245 | J6: 2645 | K6: 0 | L6: 0 | M6: 140 | N6: 15 | O6: 15 | P6: 16 | Q6: 6 | R6: 10 | S6: 0 | T6: 0 | U6: 0 | V6: 0 | W6: 0 | X6: 2 | Y6: 7076 | Z6: 4950 | AA6: 0 | AB6: 502 | AC6: 232 | AD6: 60 | AE6: 236 | AF6: 0 | AG6: 2882 | AH6: 0 | AI6: 19 | AJ6: 0 | AK6: 59 | AL6: 1872 | AM6: 0 | AN6: 0 | AO6: 0 | AP6: 0 | AQ6: 75 | AR6: 0 | AS6: 358 | AT6: 0 | AU6: 0 | AV6: 0 | AW6: 0 | AX6: 0 | AY6: 0 | AZ6: 0 | BA6: 0 | BB6: 0 | BC6: 0 | BD6: 0 | BE6: 0 | BF6: 0 | BG6: 0 | BH6: 0 | BI6: 0 | BJ6: 0 | BK6: 0 | BL6: 14 | BM6: 0 | BN6: 13 | BO6: 33 | BP6: 6 | BQ6: 6 | BR6: 25 | BS6: 0 | BT6: 1 | BU6: 1 | BV6: 0 | BW6: 0 | BX6: 0 | BY6: 0 | BZ6: 4 | CA6: 0 | CB6: 8 | CC6: 2 | CD6: 1 | CE6: 6 | CF6: 7 | CG6: 0 | CH6: 0 | CI6: 0 | CJ6: 0 | CK6: 0 | CL6: 0 | CM6: 0 | CN6: 0 | CO6: 0 | CP6: 0 | CQ6: 0 | CR6: 0 | CS6: 0 | CT6: 0 | CU6: 0 | CV6: 0 | CW6: 0 | CX6: 0 | CY6: 0 | CZ6: 1 | DA6: 1 | DB6: 0 | DC6: 0 | DD6: 0 | DE6: 6 | DF6: 27 | DG6: 0 | DH6: 9 | DI6: 0 | DJ6: 6 | DK6: 1 | DL6: 2 | DM6: 0 | DN6: 6 | DO6: 5 | DP6: 0 | DQ6: 0 | DR6: 0 | DS6: 0 | DT6: 0 | DU6: 0 | DV6: 0 | DW6: 0 | DX6: 0 | DY6: 0 | DZ6: 0 | EA6: 0 | EB6: 0 | EC6: 0 | ED6: 0 | EE6: 0 | EF6: 0 | EG6: 1 | EH6: 1 | EI6: 0 | EJ6: 0 | EK6: 0
B7: Christian ROUX | C7: =SUMPRODUCT(('Avantages perçus'!$A$2:$A$30000=B7)*('Avantages perçus'!$F$2:$F$30000)) -> 11308 | D7: =COUNTIFS('Avantages perçus'!$A$2:$A$30000,B7,'Avantages perçus'!$F$2:$F$30000,">0") -> 62 | E7: =COUNTIFS('Conventions signées'!$A$2:$A$15000,B7,'Conventions signées'!$A$2:$A$15000,"*") -> 68 | F7: 4905 | G7: 1383 | H7: 1313 | I7: 2125 | J7: 275 | K7: 0 | L7: 0 | M7: 1307 | N7: 13 | O7: 20 | P7: 3 | Q7: 27 | R7: 4 | S7: 0 | T7: 1 | U7: 0 | V7: 0 | W7: 0 | X7: 0 | Y7: 89 | Z7: 76 | AA7: 0 | AB7: 2727 | AC7: 0 | AD7: 0 | AE7: 4426 | AF7: 1539 | AG7: 0 | AH7: 18 | AI7: 485 | AJ7: 610 | AK7: 0 | AL7: 0 | AM7: 0 | AN7: 1200 | AO7: 0 | AP7: 0 | AQ7: 65 | AR7: 0 | AS7: 0 | AT7: 0 | AU7: 0 | AV7: 0 | AW7: 0 | AX7: 0 | AY7: 0 | AZ7: 0 | BA7: 58 | BB7: 0 | BC7: 0 | BD7: 0 | BE7: 0 | BF7: 0 | BG7: 0 | BH7: 0 | BI7: 0 | BJ7: 0 | BK7: 15 | BL7: 0 | BM7: 0 | BN7: 0 | BO7: 2 | BP7: 20 | BQ7: 0 | BR7: 1 | BS7: 19 | BT7: 0 | BU7: 4 | BV7: 7 | BW7: 0 | BX7: 0 | BY7: 1 | BZ7: 4 | CA7: 0 | CB7: 0 | CC7: 1 | CD7: 0 | CE7: 0 | CF7: 0 | CG7: 0 | CH7: 0 | CI7: 0 | CJ7: 0 | CK7: 0 | CL7: 0 | CM7: 0 | CN7: 0 | CO7: 0 | CP7: 0 | CQ7: 0 | CR7: 0 | CS7: 0 | CT7: 0 | CU7: 0 | CV7: 0 | CW7: 0 | CX7: 0 | CY7: 0 | CZ7: 0 | DA7: 0 | DB7: 1 | DC7: 1 | DD7: 1 | DE7: 24 | DF7: 5 | DG7: 25 | DH7: 0 | DI7: 7 | DJ7: 0 | DK7: 1 | DL7: 0 | DM7: 0 | DN7: 1 | DO7: 0 | DP7: 0 | DQ7: 0 | DR7: 0 | DS7: 0 | DT7: 0 | DU7: 0 | DV7: 2 | DW7: 0 | DX7: 0 | DY7: 0 | DZ7: 0 | EA7: 0 | EB7: 0 | EC7: 0 | ED7: 0 | EE7: 0 | EF7: 0 | EG7: 0 | EH7: 0 | EI7: 1 | EJ7: 1 | EK7: 1
B8: Christophe HUDRY | C8: =SUMPRODUCT(('Avantages perçus'!$A$2:$A$30000=B8)*('Avantages perçus'!$F$2:$F$30000)) -> 9040 | D8: =COUNTIFS('Avantages perçus'!$A$2:$A$30000,B8,'Avantages perçus'!$F$2:$F$30000,">0") -> 65 | E8: =COUNTIFS('Conventions signées'!$A$2:$A$15000,B8,'Conventions signées'!$A$2:$A$15000,"*") -> 48 | F8: 2149 | G8: 2006 | H8: 2194 | I8: 150 | J8: 2455 | K8: 0 | L8: 0 | M8: 86 | N8: 13 | O8: 11 | P8: 6 | Q8: 8 | R8: 4 | S8: 4 | T8: 0 | U8: 2 | V8: 0 | W8: 0 | X8: 0 | Y8: 3249 | Z8: 3471 | AA8: 0 | AB8: 1195 | AC8: 229 | AD8: 326 | AE8: 0 | AF8: 0 | AG8: 0 | AH8: 18 | AI8: 50 | AJ8: 0 | AK8: 0 | AL8: 24 | AM8: 38 | AN8: 0 | AO8: 0 | AP8: 0 | AQ8: 0 | AR8: 338 | AS8: 0 | AT8: 29 | AU8: 0 | AV8: 0 | AW8: 0 | AX8: 0 | AY8: 39 | AZ8: 0 | BA8: 0 | BB8: 0 | BC8: 0 | BD8: 34 | BE8: 0 | BF8: 0 | BG8: 0 | BH8: 0 | BI8: 0 | BJ8: 0 | BK8: 0 | BL8: 0 | BM8: 0 | BN8: 0 | BO8: 26 | BP8: 8 | BQ8: 3 | BR8: 13 | BS8: 0 | BT8: 5 | BU8: 1 | BV8: 0 | BW8: 0 | BX8: 1 | BY8: 1 | BZ8: 0 | CA8: 1 | CB8: 1 | CC8: 0 | CD8: 0 | CE8: 0 | CF8: 0 | CG8: 0 | CH8: 0 | CI8: 2 | CJ8: 2 | CK8: 0 | CL8: 0 | CM8: 0 | CN8: 0 | CO8: 0 | CP8: 0 | CQ8: 1 | CR8: 0 | CS8: 0 | CT8: 0 | CU8: 0 | CV8: 0 | CW8: 0 | CX8: 0 | CY8: 0 | CZ8: 0 | DA8: 0 | DB8: 0 | DC8: 0 | DD8: 0 | DE8: 15 | DF8: 8 | DG8: 0 | DH8: 6 | DI8: 0 | DJ8: 5 | DK8: 4 | DL8: 5 | DM8: 1 | DN8: 0 | DO8: 0 | DP8: 0 | DQ8: 2 | DR8: 0 | DS8: 0 | DT8: 0 | DU8: 0 | DV8: 0 | DW8: 0 | DX8: 0 | DY8: 0 | DZ8: 1 | EA8: 1 | EB8: 0 | EC8: 0 | ED8: 0 | EE8: 0 | EF8: 0 | EG8: 0 | EH8: 0 | EI8: 0 | EJ8: 0 | EK8: 0
B9: Véronique GAUD-LISTRAT | C9: =SUMPRODUCT(('Avantages perçus'!$A$2:$A$30000=B9)*('Avantages perçus'!$F$2:$F$30000)) -> 8775 | D9: =COUNTIFS('Avantages perçus'!$A$2:$A$30000,B9,'Avantages perçus'!$F$2:$F$30000,">0") -> 75 | E9: =COUNTIFS('Conventions signées'!$A$2:$A$15000,B9,'Conventions signées'!$A$2:$A$15000,"*") -> 33 | F9: 1608 | G9: 1528 | H9: 2385 | I9: 314 | J9: 2253 | K9: 0 | L9: 0 | M9: 687 | N9: 8 | O9: 1 | P9: 12 | Q9: 3 | R9: 0 | S9: 3 | T9: 0 | U9: 6 | V9: 0 | W9: 0 | X9: 0 | Y9: 4113 | Z9: 16 | AA9: 0 | AB9: 275 | AC9: 433 | AD9: 294 | AE9: 0 | AF9: 142 | AG9: 0 | AH9: 506 | AI9: 586 | AJ9: 0 | AK9: 1813 | AL9: 0 | AM9: 159 | AN9: 0 | AO9: 0 | AP9: 0 | AQ9: 0 | AR9: 0 | AS9: 0 | AT9: 0 | AU9: 228 | AV9: 0 | AW9: 128 | AX9: 0 | AY9: 0 | AZ9: 60 | BA9: 0 | BB9: 0 | BC9: 0 | BD9: 0 | BE9: 0 | BF9: 0 | BG9: 0 | BH9: 0 | BI9: 22 | BJ9: 0 | BK9: 0 | BL9: 0 | BM9: 0 | BN9: 0 | BO9: 26 | BP9: 5 | BQ9: 3 | BR9: 1 | BS9: 6 | BT9: 6 | BU9: 7 | BV9: 0 | BW9: 0 | BX9: 4 | BY9: 3 | BZ9: 0 | CA9: 0 | CB9: 0 | CC9: 0 | CD9: 5 | CE9: 0 | CF9: 0 | CG9: 3 | CH9: 4 | CI9: 0 | CJ9: 0 | CK9: 0 | CL9: 0 | CM9: 0 | CN9: 0 | CO9: 1 | CP9: 1 | CQ9: 0 | CR9: 0 | CS9: 0 | CT9: 0 | CU9: 0 | CV9: 0 | CW9: 0 | CX9: 0 | CY9: 0 | CZ9: 0 | DA9: 0 | DB9: 0 | DC9: 0 | DD9: 0 | DE9: 4 | DF9: 4 | DG9: 0 | DH9: 5 | DI9: 2 | DJ9: 3 | DK9: 3 | DL9: 1 | DM9: 2 | DN9: 0 | DO9: 0 | DP9: 0 | DQ9: 1 | DR9: 4 | DS9: 2 | DT9: 1 | DU9: 0 | DV9: 0 | DW9: 0 | DX9: 0 | DY9: 1 | DZ9: 0 | EA9: 0 | EB9: 0 | EC9: 0 | ED9: 0 | EE9: 0 | EF9: 0 | EG9: 0 | EH9: 0 | EI9: 0 | EJ9: 0 | EK9: 0
B10: Karine BRIOT | C10: =SUMPRODUCT(('Avantages perçus'!$A$2:$A$30000=B10)*('Avantages perçus'!$F$2:$F$30000)) -> 8525 | D10: =COUNTIFS('Avantages perçus'!$A$2:$A$30000,B10,'Avantages perçus'!$F$2:$F$30000,">0") -> 79 | E10: =COUNTIFS('Conventions signées'!$A$2:$A$15000,B10,'Conventions signées'!$A$2:$A$15000,"*") -> 72 | F10: 2522 | G10: 2180 | H10: 2089 | I10: 108 | J10: 1515 | K10: 0 | L10: 0 | M10: 111 | N10: 19 | O10: 32 | P10: 6 | Q10: 9 | R10: 5 | S10: 0 | T10: 1 | U10: 0 | V10: 0 | W10: 0 | X10: 0 | Y10: 89 | Z10: 317 | AA10: 0 | AB10: 2507 | AC10: 2788 | AD10: 0 | AE10: 0 | AF10: 1520 | AG10: 0 | AH10: 0 | AI10: 0 | AJ10: 1208 | AK10: 0 | AL10: 0 | AM10: 0 | AN10: 0 | AO10: 0 | AP10: 0 | AQ10: 65 | AR10: 0 | AS10: 0 | AT10: 31 | AU10: 0 | AV10: 0 | AW10: 0 | AX10: 0 | AY10: 0 | AZ10: 0 | BA10: 0 | BB10: 0 | BC10: 0 | BD10: 0 | BE10: 0 | BF10: 0 | BG10: 0 | BH10: 0 | BI10: 0 | BJ10: 0 | BK10: 0 | BL10: 0 | BM10: 0 | BN10: 0 | BO10: 2 | BP10: 13 | BQ10: 17 | BR10: 3 | BS10: 24 | BT10: 0 | BU10: 0 | BV10: 18 | BW10: 0 | BX10: 0 | BY10: 0 | BZ10: 0 | CA10: 1 | CB10: 0 | CC10: 1 | CD10: 0 | CE10: 0 | CF10: 0 | CG10: 0 | CH10: 0 | CI10: 0 | CJ10: 0 | CK10: 0 | CL10: 0 | CM10: 0 | CN10: 0 | CO10: 0 | CP10: 0 | CQ10: 0 | CR10: 0 | CS10: 0 | CT10: 0 | CU10: 0 | CV10: 0 | CW10: 0 | CX10: 0 | CY10: 0 | CZ10: 0 | DA10: 0 | DB10: 0 | DC10: 0 | DD10: 0 | DE10: 14 | DF10: 7 | DG10: 28 | DH10: 0 | DI10: 19 | DJ10: 2 | DK10: 0 | DL10: 0 | DM10: 0 | DN10: 1 | DO10: 0 | DP10: 1 | DQ10: 0 | DR10: 0 | DS10: 0 | DT10: 0 | DU10: 0 | DV10: 0 | DW10: 0 | DX10: 0 | DY10: 0 | DZ10: 0 | EA10: 0 | EB10: 0 | EC10: 0 | ED10: 0 | EE10: 0 | EF10: 0 | EG10: 0 | EH10: 0 | EI10: 0 | EJ10: 0 | EK10: 0
B11: Anna MOLTO | C11: =SUMPRODUCT(('Avantages perçus'!$A$2:$A$30000=B11)*('Avantages perçus'!$F$2:$F$30000)) -> 8127 | D11: =COUNTIFS('Avantages perçus'!$A$2:$A$30000,B11,'Avantages perçus'!$F$2:$F$30000,">0") -> 50 | E11: =COUNTIFS('Conventions signées'!$A$2:$A$15000,B11,'Conventions signées'!$A$2:$A$15000,"*") -> 25 | F11: 1644 | G11: 2077 | H11: 1202 | I11: 384 | J11: 2660 | K11: 0 | L11: 0 | M11: 160 | N11: 10 | O11: 1 | P11: 4 | Q11: 6 | R11: 0 | S11: 1 | T11: 2 | U11: 1 | V11: 0 | W11: 0 | X11: 0 | Y11: 1986 | Z11: 2424 | AA11: 0 | AB11: 276 | AC11: 2782 | AD11: 333 | AE11: 0 | AF11: 43 | AG11: 0 | AH11: 0 | AI11: 123 | AJ11: 0 | AK11: 0 | AL11: 0 | AM11: 0 | AN11: 0 | AO11: 0 | AP11: 0 | AQ11: 0 | AR11: 0 | AS11: 0 | AT11: 0 | AU11: 0 | AV11: 160 | AW11: 0 | AX11: 0 | AY11: 0 | AZ11: 0 | BA11: 0 | BB11: 0 | BC11: 0 | BD11: 0 | BE11: 0 | BF11: 0 | BG11: 0 | BH11: 0 | BI11: 0 | BJ11: 0 | BK11: 0 | BL11: 0 | BM11: 0 | BN11: 0 | BO11: 12 | BP11: 6 | BQ11: 18 | BR11: 6 | BS11: 1 | BT11: 2 | BU11: 4 | BV11: 0 | BW11: 0 | BX11: 0 | BY11: 0 | BZ11: 0 | CA11: 0 | CB11: 0 | CC11: 0 | CD11: 0 | CE11: 0 | CF11: 0 | CG11: 0 | CH11: 0 | CI11: 0 | CJ11: 0 | CK11: 0 | CL11: 0 | CM11: 0 | CN11: 0 | CO11: 0 | CP11: 0 | CQ11: 0 | CR11: 0 | CS11: 0 | CT11: 0 | CU11: 1 | CV11: 0 | CW11: 0 | CX11: 0 | CY11: 0 | CZ11: 0 | DA11: 0 | DB11: 0 | DC11: 0 | DD11: 0 | DE11: 4 | DF11: 5 | DG11: 0 | DH11: 7 | DI11: 0 | DJ11: 2 | DK11: 2 | DL11: 0 | DM11: 1 | DN11: 0 | DO11: 0 | DP11: 2 | DQ11: 0 | DR11: 0 | DS11: 0 | DT11: 1 | DU11: 1 | DV11: 0 | DW11: 0 | DX11: 0 | DY11: 0 | DZ11: 0 | EA11: 0 | EB11: 0 | EC11: 0 | ED11: 0 | EE11: 0 | EF11: 0 | EG11: 0 | EH11: 0 | EI11: 0 | EJ11: 0 | EK11: 0
B12: Jacques FECHTENBAUM | C12: =SUMPRODUCT(('Avantages perçus'!$A$2:$A$30000=B12)*('Avantages perçus'!$F$2:$F$30000)) -> 5341 | D12: =COUNTIFS('Avantages perçus'!$A$2:$A$30000,B12,'Avantages perçus'!$F$2:$F$30000,">0") -> 51 | E12: =COUNTIFS('Conventions signées'!$A$2:$A$15000,B12,'Conventions signées'!$A$2:$A$15000,"*") -> 22 | F12: 1041 | G12: 1152 | H12: 1576 | I12: 502 | J12: 1020 | K12: 0 | L12: 0 | M12: 50 | N12: 10 | O12: 3 | P12: 6 | Q12: 0 | R12: 0 | S12: 1 | T12: 0 | U12: 2 | V12: 0 | W12: 0 | X12: 0 | Y12: 208 | Z12: 184 | AA12: 0 | AB12: 946 | AC12: 1608 | AD12: 60 | AE12: 0 | AF12: 559 | AG12: 0 | AH12: 0 | AI12: 0 | AJ12: 168 | AK12: 55 | AL12: 0 | AM12: 1326 | AN12: 0 | AO12: 0 | AP12: 0 | AQ12: 85 | AR12: 0 | AS12: 0 | AT12: 50 | AU12: 0 | AV12: 0 | AW12: 30 | AX12: 62 | AY12: 0 | AZ12: 0 | BA12: 0 | BB12: 0 | BC12: 0 | BD12: 0 | BE12: 0 | BF12: 0 | BG12: 0 | BH12: 0 | BI12: 0 | BJ12: 0 | BK12: 0 | BL12: 0 | BM12: 0 | BN12: 0 | BO12: 4 | BP12: 8 | BQ12: 7 | BR12: 4 | BS12: 11 | BT12: 1 | BU12: 0 | BV12: 4 | BW12: 0 | BX12: 5 | BY12: 0 | BZ12: 0 | CA12: 2 | CB12: 0 | CC12: 2 | CD12: 1 | CE12: 0 | CF12: 0 | CG12: 1 | CH12: 0 | CI12: 0 | CJ12: 0 | CK12: 0 | CL12: 1 | CM12: 0 | CN12: 0 | CO12: 0 | CP12: 0 | CQ12: 0 | CR12: 0 | CS12: 0 | CT12: 0 | CU12: 0 | CV12: 0 | CW12: 0 | CX12: 0 | CY12: 0 | CZ12: 0 | DA12: 0 | DB12: 0 | DC12: 0 | DD12: 0 | DE12: 8 | DF12: 2 | DG12: 3 | DH12: 1 | DI12: 1 | DJ12: 2 | DK12: 0 | DL12: 0 | DM12: 3 | DN12: 0 | DO12: 0 | DP12: 0 | DQ12: 1 | DR12: 0 | DS12: 0 | DT12: 0 | DU12: 0 | DV12: 0 | DW12: 0 | DX12: 1 | DY12: 0 | DZ12: 0 | EA12: 0 | EB12: 0 | EC12: 0 | ED12: 0 | EE12: 0 | EF12: 0 | EG12: 0 | EH12: 0 | EI12: 0 | EJ12: 0 | EK12: 0
B13: Anne BLANCHAIS (BEHR) | C13: =SUMPRODUCT(('Avantages perçus'!$A$2:$A$30000=B13)*('Avantages perçus'!$F$2:$F$30000)) -> 4302 | D13: =COUNTIFS('Avantages perçus'!$A$2:$A$30000,B13,'Avantages perçus'!$F$2:$F$30000,">0") -> 41 | E13: =COUNTIFS('Conventions signées'!$A$2:$A$15000,B13,'Conventions signées'!$A$2:$A$15000,"*") -> 13 | F13: 912 | G13: 1120 | H13: 1095 | I13: 125 | J13: 1050 | K13: 0 | L13: 0 | M13: 0 | N13: 7 | O13: 0 | P13: 3 | Q13: 0 | R13: 0 | S13: 2 | T13: 0 | U13: 1 | V13: 0 | W13: 0 | X13: 0 | Y13: 260 | Z13: 466 | AA13: 0 | AB13: 194 | AC13: 2957 | AD13: 125 | AE13: 0 | AF13: 43 | AG13: 0 | AH13: 0 | AI13: 219 | AJ13: 0 | AK13: 0 | AL13: 0 | AM13: 38 | AN13: 0 | AO13: 0 | AP13: 0 | AQ13: 0 | AR13: 0 | AS13: 0 | AT13: 0 | AU13: 0 | AV13: 0 | AW13: 0 | AX13: 0 | AY13: 0 | AZ13: 0 | BA13: 0 | BB13: 0 | BC13: 0 | BD13: 0 | BE13: 0 | BF13: 0 | BG13: 0 | BH13: 0 | BI13: 0 | BJ13: 0 | BK13: 0 | BL13: 0 | BM13: 0 | BN13: 0 | BO13: 5 | BP13: 4 | BQ13: 18 | BR13: 2 | BS13: 1 | BT13: 4 | BU13: 6 | BV13: 0 | BW13: 0 | BX13: 1 | BY13: 0 | BZ13: 0 | CA13: 0 | CB13: 0 | CC13: 0 | CD13: 0 | CE13: 0 | CF13: 0 | CG13: 0 | CH13: 0 | CI13: 0 | CJ13: 0 | CK13: 0 | CL13: 0 | CM13: 0 | CN13: 0 | CO13: 0 | CP13: 0 | CQ13: 0 | CR13: 0 | CS13: 0 | CT13: 0 | CU13: 0 | CV13: 0 | CW13: 0 | CX13: 0 | CY13: 0 | CZ13: 0 | DA13: 0 | DB13: 0 | DC13: 0 | DD13: 0 | DE13: 3 | DF13: 2 | DG13: 0 | DH13: 0 | DI13: 0 | DJ13: 3 | DK13: 3 | DL13: 0 | DM13: 1 | DN13: 0 | DO13: 0 | DP13: 0 | DQ13: 0 | DR13: 0 | DS13: 0 | DT13: 0 | DU13: 0 | DV13: 0 | DW13: 1 | DX13: 0 | DY13: 0 | DZ13: 0 | EA13: 0 | EB13: 0 | EC13: 0 | ED13: 0 | EE13: 0 | EF13: 0 | EG13: 0 | EH13: 0 | EI13: 0 | EJ13: 0 | EK13: 0
B14: Axelle SALCION-MATOUB | C14: =SUMPRODUCT(('Avantages perçus'!$A$2:$A$30000=B14)*('Avantages perçus'!$F$2:$F$30000)) -> 3484 | D14: =COUNTIFS('Avantages perçus'!$A$2:$A$30000,B14,'Avantages perçus'!$F$2:$F$30000,">0") -> 30 | E14: =COUNTIFS('Conventions signées'!$A$2:$A$15000,B14,'Conventions signées'!$A$2:$A$15000,"*") -> 8 | F14: 49 | G14: 660 | H14: 757 | I14: 1203 | J14: 815 | K14: 0 | L14: 0 | M14: 0 | N14: 5 | O14: 0 | P14: 3 | Q14: 0 | R14: 0 | S14: 0 | T14: 0 | U14: 0 | V14: 0 | W14: 0 | X14: 0 | Y14: 312 | Z14: 0 | AA14: 0 | AB14: 114 | AC14: 1409 | AD14: 1340 | AE14: 0 | AF14: 0 | AG14: 0 | AH14: 0 | AI14: 228 | AJ14: 0 | AK14: 0 | AL14: 0 | AM14: 0 | AN14: 0 | AO14: 0 | AP14: 0 | AQ14: 0 | AR14: 0 | AS14: 0 | AT14: 0 | AU14: 0 | AV14: 0 | AW14: 0 | AX14: 0 | AY14: 0 | AZ14: 0 | BA14: 0 | BB14: 32 | BC14: 0 | BD14: 0 | BE14: 26 | BF14: 0 | BG14: 0 | BH14: 23 | BI14: 0 | BJ14: 0 | BK14: 0 | BL14: 0 | BM14: 0 | BN14: 0 | BO14: 7 | BP14: 2 | BQ14: 6 | BR14: 0 | BS14: 0 | BT14: 8 | BU14: 4 | BV14: 0 | BW14: 0 | BX14: 0 | BY14: 0 | BZ14: 0 | CA14: 0 | CB14: 0 | CC14: 0 | CD14: 0 | CE14: 0 | CF14: 0 | CG14: 0 | CH14: 0 | CI14: 0 | CJ14: 0 | CK14: 1 | CL14: 0 | CM14: 0 | CN14: 0 | CO14: 0 | CP14: 0 | CQ14: 0 | CR14: 0 | CS14: 0 | CT14: 0 | CU14: 0 | CV14: 0 | CW14: 0 | CX14: 1 | CY14: 1 | CZ14: 0 | DA14: 0 | DB14: 0 | DC14: 0 | DD14: 0 | DE14: 3 | DF14: 1 | DG14: 0 | DH14: 1 | DI14: 0 | DJ14: 1 | DK14: 2 | DL14: 0 | DM14: 0 | DN14: 0 | DO14: 0 | DP14: 0 | DQ14: 0 | DR14: 0 | DS14: 0 | DT14: 0 | DU14: 0 | DV14: 0 | DW14: 0 | DX14: 0 | DY14: 0 | DZ14: 0 | EA14: 0 | EB14: 0 | EC14: 0 | ED14: 0 | EE14: 0 | EF14: 0 | EG14: 0 | EH14: 0 | EI14: 0 | EJ14: 0 | EK14: 0
B15: Minh NGUYEN | C15: =SUMPRODUCT(('Avantages perçus'!$A$2:$A$30000=B15)*('Avantages perçus'!$F$2:$F$30000)) -> 3168 | D15: =COUNTIFS('Avantages perçus'!$A$2:$A$30000,B15,'Avantages perçus'!$F$2:$F$30000,">0") -> 21 | E15: =COUNTIFS('Conventions signées'!$A$2:$A$15000,B15,'Conventions signées'!$A$2:$A$15000,"*") -> 10 | F15: 1048 | G15: 120 | H15: 464 | I15: 1320 | J15: 0 | K15: 0 | L15: 0 | M15: 216 | N15: 4 | O15: 0 | P15: 1 | Q15: 1 | R15: 0 | S15: 4 | T15: 0 | U15: 0 | V15: 0 | W15: 0 | X15: 0 | Y15: 113 | Z15: 0 | AA15: 0 | AB15: 1662 | AC15: 60 | AD15: 373 | AE15: 0 | AF15: 0 | AG15: 0 | AH15: 18 | AI15: 0 | AJ15: 0 | AK15: 0 | AL15: 0 | AM15: 0 | AN15: 0 | AO15: 807 | AP15: 0 | AQ15: 0 | AR15: 0 | AS15: 0 | AT15: 56 | AU15: 0 | AV15: 0 | AW15: 0 | AX15: 0 | AY15: 36 | AZ15: 0 | BA15: 0 | BB15: 0 | BC15: 43 | BD15: 0 | BE15: 0 | BF15: 0 | BG15: 0 | BH15: 0 | BI15: 0 | BJ15: 0 | BK15: 0 | BL15: 0 | BM15: 0 | BN15: 0 | BO15: 3 | BP15: 8 | BQ15: 1 | BR15: 0 | BS15: 0 | BT15: 2 | BU15: 0 | BV15: 0 | BW15: 0 | BX15: 0 | BY15: 1 | BZ15: 0 | CA15: 2 | CB15: 0 | CC15: 0 | CD15: 0 | CE15: 0 | CF15: 0 | CG15: 0 | CH15: 0 | CI15: 2 | CJ15: 0 | CK15: 0 | CL15: 0 | CM15: 0 | CN15: 0 | CO15: 0 | CP15: 0 | CQ15: 0 | CR15: 0 | CS15: 0 | CT15: 0 | CU15: 0 | CV15: 1 | CW15: 1 | CX15: 0 | CY15: 0 | CZ15: 0 | DA15: 0 | DB15: 0 | DC15: 0 | DD15: 0 | DE15: 3 | DF15: 0 | DG15: 0 | DH15: 3 | DI15: 1 | DJ15: 1 | DK15: 0 | DL15: 0 | DM15: 0 | DN15: 0 | DO15: 0 | DP15: 0 | DQ15: 0 | DR15: 0 | DS15: 0 | DT15: 0 | DU15: 0 | DV15: 0 | DW15: 0 | DX15: 0 | DY15: 0 | DZ15: 0 | EA15: 0 | EB15: 0 | EC15: 1 | ED15: 1 | EE15: 0 | EF15: 0 | EG15: 0 | EH15: 0 | EI15: 0 | EJ15: 0 | EK15: 0
B16: Agnès LEBRUN-FOISNET | C16: =SUMPRODUCT(('Avantages perçus'!$A$2:$A$30000=B16)*('Avantages perçus'!$F$2:$F$30000)) -> 2860 | D16: =COUNTIFS('Avantages perçus'!$A$2:$A$30000,B16,'Avantages perçus'!$F$2:$F$30000,">0") -> 15 | E16: =COUNTIFS('Conventions signées'!$A$2:$A$15000,B16,'Conventions signées'!$A$2:$A$15000,"*") -> 9 | F16: 881 | G16: 675 | H16: 585 | I16: 19 | J16: 700 | K16: 0 | L16: 0 | M16: 0 | N16: 7 | O16: 0 | P16: 2 | Q16: 0 | R16: 0 | S16: 0 | T16: 0 | U16: 0 | V16: 0 | W16: 0 | X16: 0 | Y16: 89 | Z16: 2446 | AA16: 0 | AB16: 162 | AC16: 0 | AD16: 83 | AE16: 0 | AF16: 13 | AG16: 0 | AH16: 0 | AI16: 0 | AJ16: 48 | AK16: 0 | AL16: 0 | AM16: 0 | AN16: 0 | AO16: 0 | AP16: 0 | AQ16: 0 | AR16: 0 | AS16: 0 | AT16: 0 | AU16: 0 | AV16: 0 | AW16: 0 | AX16: 0 | AY16: 0 | AZ16: 0 | BA16: 0 | BB16: 0 | BC16: 0 | BD16: 0 | BE16: 0 | BF16: 0 | BG16: 0 | BH16: 0 | BI16: 0 | BJ16: 19 | BK16: 0 | BL16: 0 | BM16: 0 | BN16: 0 | BO16: 2 | BP16: 3 | BQ16: 0 | BR16: 6 | BS16: 1 | BT16: 1 | BU16: 0 | BV16: 1 | BW16: 0 | BX16: 0 | BY16: 0 | BZ16: 0 | CA16: 0 | CB16: 0 | CC16: 0 | CD16: 0 | CE16: 0 | CF16: 0 | CG16: 0 | CH16: 0 | CI16: 0 | CJ16: 0 | CK16: 0 | CL16: 0 | CM16: 0 | CN16: 0 | CO16: 0 | CP16: 0 | CQ16: 0 | CR16: 0 | CS16: 0 | CT16: 1 | CU16: 0 | CV16: 0 | CW16: 0 | CX16: 0 | CY16: 0 | CZ16: 0 | DA16: 0 | DB16: 0 | DC16: 0 | DD16: 0 | DE16: 3 | DF16: 5 | DG16: 1 | DH16: 0 | DI16: 0 | DJ16: 0 | DK16: 0 | DL16: 0 | DM16: 0 | DN16: 0 | DO16: 0 | DP16: 0 | DQ16: 0 | DR16: 0 | DS16: 0 | DT16: 0 | DU16: 0 | DV16: 0 | DW16: 0 | DX16: 0 | DY16: 0 | DZ16: 0 | EA16: 0 | EB16: 0 | EC16: 0 | ED16: 0 | EE16: 0 | EF16: 0 | EG16: 0 | EH16: 0 | EI16: 0 | EJ16: 0 | EK16: 0
B17: Xavier AYRAL | C17: =SUMPRODUCT(('Avantages perçus'!$A$2:$A$30000=B17)*('Avantages perçus'!$F$2:$F$30000)) -> 2607 | D17: =COUNTIFS('Avantages perçus'!$A$2:$A$30000,B17,'Avantages perçus'!$F$2:$F$30000,">0") -> 24 | E17: =COUNTIFS('Conventions signées'!$A$2:$A$15000,B17,'Conventions signées'!$A$2:$A$15000,"*") -> 10 | F17: 0 | G17: 0 | H17: 629 | I17: 384 | J17: 470 | K17: 0 | L17: 0 | M17: 1124 | N17: 6 | O17: 0 | P17: 3 | Q17: 0 | R17: 0 | S17: 0 | T17: 0 | U17: 1 | V17: 0 | W17: 0 | X17: 0 | Y17: 135 | Z17: 172 | AA17: 0 | AB17: 442 | AC17: 83 | AD17: 59 | AE17: 0 | AF17: 0 | AG17: 0 | AH17: 1509 | AI17: 84 | AJ17: 0 | AK17: 0 | AL17: 0 | AM17: 38 | AN17: 0 | AO17: 0 | AP17: 0 | AQ17: 0 | AR17: 0 | AS17: 0 | AT17: 85 | AU17: 0 | AV17: 0 | AW17: 0 | AX17: 0 | AY17: 0 | AZ17: 0 | BA17: 0 | BB17: 0 | BC17: 0 | BD17: 0 | BE17: 0 | BF17: 0 | BG17: 0 | BH17: 0 | BI17: 0 | BJ17: 0 | BK17: 0 | BL17: 0 | BM17: 0 | BN17: 0 | BO17: 3 | BP17: 3 | BQ17: 2 | BR17: 4 | BS17: 0 | BT17: 2 | BU17: 3 | BV17: 0 | BW17: 0 | BX17: 1 | BY17: 3 | BZ17: 0 | CA17: 3 | CB17: 0 | CC17: 0 | CD17: 0 | CE17: 0 | CF17: 0 | CG17: 0 | CH17: 0 | CI17: 0 | CJ17: 0 | CK17: 0 | CL17: 0 | CM17: 0 | CN17: 0 | CO17: 0 | CP17: 0 | CQ17: 0 | CR17: 0 | CS17: 0 | CT17: 0 | CU17: 0 | CV17: 0 | CW17: 0 | CX17: 0 | CY17: 0 | CZ17: 0 | DA17: 0 | DB17: 0 | DC17: 0 | DD17: 0 | DE17: 3 | DF17: 4 | DG17: 0 | DH17: 0 | DI17: 0 | DJ17: 1 | DK17: 1 | DL17: 0 | DM17: 1 | DN17: 0 | DO17: 0 | DP17: 0 | DQ17: 0 | DR17: 0 | DS17: 0 | DT17: 0 | DU17: 0 | DV17: 0 | DW17: 0 | DX17: 0 | DY17: 0 | DZ17: 0 | EA17: 0 | EB17: 0 | EC17: 0 | ED17: 0 | EE17: 0 | EF17: 0 | EG17: 0 | EH17: 0 | EI17: 0 | EJ17: 0 | EK17: 0
B18: Séverine NEVEU | C18: =SUMPRODUCT(('Avantages perçus'!$A$2:$A$30000=B18)*('Avantages perçus'!$F$2:$F$30000)) -> 2591 | D18: =COUNTIFS('Avantages perçus'!$A$2:$A$30000,B18,'Avantages perçus'!$F$2:$F$30000,">0") -> 16 | E18: =COUNTIFS('Conventions signées'!$A$2:$A$15000,B18,'Conventions signées'!$A$2:$A$15000,"*") -> 11 | F18: 454 | G18: 450 | H18: 425 | I18: 94 | J18: 1150 | K18: 0 | L18: 0 | M18: 18 | N18: 10 | O18: 0 | P18: 1 | Q18: 0 | R18: 0 | S18: 0 | T18: 0 | U18: 0 | V18: 0 | W18: 0 | X18: 0 | Y18: 41 | Z18: 2054 | AA18: 0 | AB18: 315 | AC18: 0 | AD18: 59 | AE18: 0 | AF18: 0 | AG18: 0 | AH18: 18 | AI18: 104 | AJ18: 0 | AK18: 0 | AL18: 0 | AM18: 0 | AN18: 0 | AO18: 0 | AP18: 0 | AQ18: 0 | AR18: 0 | AS18: 0 | AT18: 0 | AU18: 0 | AV18: 0 | AW18: 0 | AX18: 0 | AY18: 0 | AZ18: 0 | BA18: 0 | BB18: 0 | BC18: 0 | BD18: 0 | BE18: 0 | BF18: 0 | BG18: 0 | BH18: 0 | BI18: 0 | BJ18: 0 | BK18: 0 | BL18: 0 | BM18: 0 | BN18: 0 | BO18: 1 | BP18: 5 | BQ18: 0 | BR18: 4 | BS18: 0 | BT18: 2 | BU18: 3 | BV18: 0 | BW18: 0 | BX18: 0 | BY18: 1 | BZ18: 0 | CA18: 0 | CB18: 0 | CC18: 0 | CD18: 0 | CE18: 0 | CF18: 0 | CG18: 0 | CH18: 0 | CI18: 0 | CJ18: 0 | CK18: 0 | CL18: 0 | CM18: 0 | CN18: 0 | CO18: 0 | CP18: 0 | CQ18: 0 | CR18: 0 | CS18: 0 | CT18: 0 | CU18: 0 | CV18: 0 | CW18: 0 | CX18: 0 | CY18: 0 | CZ18: 0 | DA18: 0 | DB18: 0 | DC18: 0 | DD18: 0 | DE18: 5 | DF18: 3 | DG18: 0 | DH18: 0 | DI18: 0 | DJ18: 0 | DK18: 3 | DL18: 0 | DM18: 0 | DN18: 0 | DO18: 0 | DP18: 0 | DQ18: 0 | DR18: 0 | DS18: 0 | DT18: 0 | DU18: 0 | DV18: 0 | DW18: 0 | DX18: 0 | DY18: 0 | DZ18: 0 | EA18: 0 | EB18: 0 | EC18: 0 | ED18: 0 | EE18: 0 | EF18: 0 | EG18: 0 | EH18: 0 | EI18: 0 | EJ18: 0 | EK18: 0
B19: Joël DAMIANO | C19: =SUMPRODUCT(('Avantages perçus'!$A$2:$A$30000=B19)*('Avantages perçus'!$F$2:$F$30000)) -> 1529 | D19: =COUNTIFS('Avantages perçus'!$A$2:$A$30000,B19,'Avantages perçus'!$F$2:$F$30000,">0") -> 11 | E19: =COUNTIFS('Conventions signées'!$A$2:$A$15000,B19,'Conventions signées'!$A$2:$A$15000,"*") -> 5 | F19: 0 | G19: 0 | H19: 125 | I19: 18 | J19: 1286 | K19: 0 | L19: 0 | M19: 100 | N19: 4 | O19: 0 | P19: 1 | Q19: 0 | R19: 0 | S19: 0 | T19: 0 | U19: 0 | V19: 0 | W19: 0 | X19: 0 | Y19: 936 | Z19: 0 | AA19: 0 | AB19: 97 | AC19: 23 | AD19: 0 | AE19: 0 | AF19: 0 | AG19: 0 | AH19: 439 | AI19: 0 | AJ19: 0 | AK19: 0 | AL19: 0 | AM19: 0 | AN19: 0 | AO19: 0 | AP19: 0 | AQ19: 0 | AR19: 0 | AS19: 0 | AT19: 0 | AU19: 0 | AV19: 0 | AW19: 0 | AX19: 0 | AY19: 0 | AZ19: 0 | BA19: 0 | BB19: 11 | BC19: 0 | BD19: 0 | BE19: 0 | BF19: 23 | BG19: 0 | BH19: 0 | BI19: 0 | BJ19: 0 | BK19: 0 | BL19: 0 | BM19: 0 | BN19: 0 | BO19: 2 | BP19: 4 | BQ19: 1 | BR19: 0 | BS19: 0 | BT19: 0 | BU19: 0 | BV19: 0 | BW19: 0 | BX19: 0 | BY19: 2 | BZ19: 0 | CA19: 0 | CB19: 0 | CC19: 0 | CD19: 0 | CE19: 0 | CF19: 0 | CG19: 0 | CH19: 0 | CI19: 0 | CJ19: 0 | CK19: 1 | CL19: 0 | CM19: 0 | CN19: 1 | CO19: 0 | CP19: 0 | CQ19: 0 | CR19: 0 | CS19: 0 | CT19: 0 | CU19: 0 | CV19: 0 | CW19: 0 | CX19: 0 | CY19: 0 | CZ19: 0 | DA19: 0 | DB19: 0 | DC19: 0 | DD19: 0 | DE19: 1 | DF19: 1 | DG19: 1 | DH19: 2 | DI19: 0 | DJ19: 0 | DK19: 0 | DL19: 0 | DM19: 0 | DN19: 0 | DO19: 0 | DP19: 0 | DQ19: 0 | DR19: 0 | DS19: 0 | DT19: 0 | DU19: 0 | DV19: 0 | DW19: 0 | DX19: 0 | DY19: 0 | DZ19: 0 | EA19: 0 | EB19: 0 | EC19: 0 | ED19: 0 | EE19: 0 | EF19: 0 | EG19: 0 | EH19: 0 | EI19: 0 | EJ19: 0 | EK19: 0
B20: Sami KOLTA | C20: =SUMPRODUCT(('Avantages perçus'!$A$2:$A$30000=B20)*('Avantages perçus'!$F$2:$F$30000)) -> 1176 | D20: =COUNTIFS('Avantages perçus'!$A$2:$A$30000,B20,'Avantages perçus'!$F$2:$F$30000,">0") -> 13 | E20: =COUNTIFS('Conventions signées'!$A$2:$A$15000,B20,'Conventions signées'!$A$2:$A$15000,"*") -> 9 | F20: 0 | G20: 0 | H20: 438 | I20: 700 | J20: 20 | K20: 0 | L20: 0 | M20: 18 | N20: 3 | O20: 0 | P20: 3 | Q20: 0 | R20: 0 | S20: 0 | T20: 2 | U20: 1 | V20: 0 | W20: 0 | X20: 0 | Y20: 89 | Z20: 0 | AA20: 0 | AB20: 129 | AC20: 60 | AD20: 700 | AE20: 0 | AF20: 34 | AG20: 0 | AH20: 18 | AI20: 0 | AJ20: 23 | AK20: 0 | AL20: 0 | AM20: 38 | AN20: 0 | AO20: 0 | AP20: 0 | AQ20: 85 | AR20: 0 | AS20: 0 | AT20: 0 | AU20: 0 | AV20: 0 | AW20: 0 | AX20: 0 | AY20: 0 | AZ20: 0 | BA20: 0 | BB20: 0 | BC20: 0 | BD20: 0 | BE20: 0 | BF20: 0 | BG20: 0 | BH20: 0 | BI20: 0 | BJ20: 0 | BK20: 0 | BL20: 0 | BM20: 0 | BN20: 0 | BO20: 2 | BP20: 3 | BQ20: 1 | BR20: 0 | BS20: 1 | BT20: 1 | BU20: 0 | BV20: 1 | BW20: 0 | BX20: 1 | BY20: 1 | BZ20: 0 | CA20: 0 | CB20: 0 | CC20: 2 | CD20: 0 | CE20: 0 | CF20: 0 | CG20: 0 | CH20: 0 | CI20: 0 | CJ20: 0 | CK20: 0 | CL20: 0 | CM20: 0 | CN20: 0 | CO20: 0 | CP20: 0 | CQ20: 0 | CR20: 0 | CS20: 0 | CT20: 0 | CU20: 0 | CV20: 0 | CW20: 0 | CX20: 0 | CY20: 0 | CZ20: 0 | DA20: 0 | DB20: 0 | DC20: 0 | DD20: 0 | DE20: 3 | DF20: 1 | DG20: 0 | DH20: 0 | DI20: 0 | DJ20: 1 | DK20: 0 | DL20: 0 | DM20: 1 | DN20: 0 | DO20: 0 | DP20: 2 | DQ20: 0 | DR20: 0 | DS20: 0 | DT20: 0 | DU20: 0 | DV20: 0 | DW20: 0 | DX20: 0 | DY20: 0 | DZ20: 0 | EA20: 0 | EB20: 1 | EC20: 0 | ED20: 0 | EE20: 0 | EF20: 0 | EG20: 0 | EH20: 0 | EI20: 0 | EJ20: 0 | EK20: 0
B21: Matthieu LAVIELLE | C21: =SUMPRODUCT(('Avantages perçus'!$A$2:$A$30000=B21)*('Avantages perçus'!$F$2:$F$30000)) -> 838 | D21: =COUNTIFS('Avantages perçus'!$A$2:$A$30000,B21,'Avantages perçus'!$F$2:$F$30000,">0") -> 11 | E21: =COUNTIFS('Conventions signées'!$A$2:$A$15000,B21,'Conventions signées'!$A$2:$A$15000,"*") -> 4 | F21: 63 | G21: 140 | H21: 266 | I21: 369 | J21: 0 | K21: 0 | L21: 0 | M21: 0 | N21: 3 | O21: 0 | P21: 0 | Q21: 1 | R21: 0 | S21: 0 | T21: 0 | U21: 0 | V21: 0 | W21: 0 | X21: 0 | Y21: 838 | Z21: 0 | AA21: 0 | AB21: 0 | AC21: 0 | AD21: 0 | AE21: 0 | AF21: 0 | AG21: 0 | AH21: 0 | AI21: 0 | AJ21: 0 | AK21: 0 | AL21: 0 | AM21: 0 | AN21: 0 | AO21: 0 | AP21: 0 | AQ21: 0 | AR21: 0 | AS21: 0 | AT21: 0 | AU21: 0 | AV21: 0 | AW21: 0 | AX21: 0 | AY21: 0 | AZ21: 0 | BA21: 0 | BB21: 0 | BC21: 0 | BD21: 0 | BE21: 0 | BF21: 0 | BG21: 0 | BH21: 0 | BI21: 0 | BJ21: 0 | BK21: 0 | BL21: 0 | BM21: 0 | BN21: 0 | BO21: 11 | BP21: 0 | BQ21: 0 | BR21: 0 | BS21: 0 | BT21: 0 | BU21: 0 | BV21: 0 | BW21: 0 | BX21: 0 | BY21: 0 | BZ21: 0 | CA21: 0 | CB21: 0 | CC21: 0 | CD21: 0 | CE21: 0 | CF21: 0 | CG21: 0 | CH21: 0 | CI21: 0 | CJ21: 0 | CK21: 0 | CL21: 0 | CM21: 0 | CN21: 0 | CO21: 0 | CP21: 0 | CQ21: 0 | CR21: 0 | CS21: 0 | CT21: 0 | CU21: 0 | CV21: 0 | CW21: 0 | CX21: 0 | CY21: 0 | CZ21: 0 | DA21: 0 | DB21: 0 | DC21: 0 | DD21: 0 | DE21: 0 | DF21: 0 | DG21: 0 | DH21: 4 | DI21: 0 | DJ21: 0 | DK21: 0 | DL21: 0 | DM21: 0 | DN21: 0 | DO21: 0 | DP21: 0 | DQ21: 0 | DR21: 0 | DS21: 0 | DT21: 0 | DU21: 0 | DV21: 0 | DW21: 0 | DX21: 0 | DY21: 0 | DZ21: 0 | EA21: 0 | EB21: 0 | EC21: 0 | ED21: 0 | EE21: 0 | EF21: 0 | EG21: 0 | EH21: 0 | EI21: 0 | EJ21: 0 | EK21: 0
B22: José-Yves JUHEL | C22: =SUMPRODUCT(('Avantages perçus'!$A$2:$A$30000=B22)*('Avantages perçus'!$F$2:$F$30000)) -> 56 | D22: =COUNTIFS('Avantages perçus'!$A$2:$A$30000,B22,'Avantages perçus'!$F$2:$F$30000,">0") -> 3 | E22: =COUNTIFS('Conventions signées'!$A$2:$A$15000,B22,'Conventions signées'!$A$2:$A$15000,"*") -> 0 | F22: 0 | G22: 0 | H22: 36 | I22: 20 | J22: 0 | K22: 0 | L22: 0 | M22: 0 | N22: 0 | O22: 0 | P22: 0 | Q22: 0 | R22: 0 | S22: 0 | T22: 0 | U22: 0 | V22: 0 | W22: 0 | X22: 0 | Y22: 0 | Z22: 0 | AA22: 0 | AB22: 0 | AC22: 0 | AD22: 0 | AE22: 0 | AF22: 0 | AG22: 0 | AH22: 0 | AI22: 0 | AJ22: 0 | AK22: 0 | AL22: 0 | AM22: 0 | AN22: 0 | AO22: 0 | AP22: 0 | AQ22: 0 | AR22: 0 | AS22: 0 | AT22: 0 | AU22: 0 | AV22: 0 | AW22: 0 | AX22: 20 | AY22: 0 | AZ22: 0 | BA22: 0 | BB22: 0 | BC22: 0 | BD22: 0 | BE22: 0 | BF22: 0 | BG22: 23 | BH22: 0 | BI22: 0 | BJ22: 0 | BK22: 0 | BL22: 0 | BM22: 13 | BN22: 0 | BO22: 0 | BP22: 0 | BQ22: 0 | BR22: 0 | BS22: 0 | BT22: 0 | BU22: 0 | BV22: 0 | BW22: 0 | BX22: 0 | BY22: 0 | BZ22: 0 | CA22: 0 | CB22: 0 | CC22: 0 | CD22: 0 | CE22: 0 | CF22: 0 | CG22: 0 | CH22: 0 | CI22: 0 | CJ22: 0 | CK22: 0 | CL22: 1 | CM22: 0 | CN22: 0 | CO22: 0 | CP22: 0 | CQ22: 0 | CR22: 1 | CS22: 1 | CT22: 0 | CU22: 0 | CV22: 0 | CW22: 0 | CX22: 0 | CY22: 0 | CZ22: 0 | DA22: 0 | DB22: 0 | DC22: 0 | DD22: 0 | DE22: 0 | DF22: 0 | DG22: 0 | DH22: 0 | DI22: 0 | DJ22: 0 | DK22: 0 | DL22: 0 | DM22: 0 | DN22: 0 | DO22: 0 | DP22: 0 | DQ22: 0 | DR22: 0 | DS22: 0 | DT22: 0 | DU22: 0 | DV22: 0 | DW22: 0 | DX22: 0 | DY22: 0 | DZ22: 0 | EA22: 0 | EB22: 0 | EC22: 0 | ED22: 0 | EE22: 0 | EF22: 0 | EG22: 0 | EH22: 0 | EI22: 0 | EJ22: 0 | EK22: 0
B23: TOTAUX | C23: 138403 | D23: 783 | E23: 481 | F23: 52518 | G23: 17519 | H23: 21156 | I23: 8606 | J23: 21777 | K23: 12586 | L23: 130 | M23: 4111 | N23: 148 | O23: 94 | P23: 81 | Q23: 79 | R23: 40 | S23: 15 | T23: 6 | U23: 15 | V23: 0 | W23: 0 | X23: 3 | Y23: 30916 | Z23: 25782 | AA23: 18294 | AB23: 16353 | AC23: 12812 | AD23: 4857 | AE23: 4840 | AF23: 3893 | AG23: 2938 | AH23: 2562 | AI23: 2315 | AJ23: 2057 | AK23: 1927 | AL23: 1896 | AM23: 1675 | AN23: 1200 | AO23: 807 | AP23: 789 | AQ23: 375 | AR23: 374 | AS23: 358 | AT23: 251 | AU23: 228 | AV23: 160 | AW23: 158 | AX23: 82 | AY23: 75 | AZ23: 60 | BA23: 58 | BB23: 43 | BC23: 43 | BD23: 34 | BE23: 26 | BF23: 23 | BG23: 23 | BH23: 23 | BI23: 22 | BJ23: 19 | BK23: 15 | BL23: 14 | BM23: 13 | BN23: 13 | BO23: 182 | BP23: 117 | BQ23: 87 | BR23: 74 | BS23: 64 | BT23: 45 | BU23: 39 | BV23: 31 | BW23: 20 | BX23: 14 | BY23: 14 | BZ23: 11 | CA23: 9 | CB23: 9 | CC23: 8 | CD23: 7 | CE23: 7 | CF23: 7 | CG23: 4 | CH23: 4 | CI23: 4 | CJ23: 3 | CK23: 2 | CL23: 2 | CM23: 2 | CN23: 1 | CO23: 1 | CP23: 1 | CQ23: 1 | CR23: 1 | CS23: 1 | CT23: 1 | CU23: 1 | CV23: 1 | CW23: 1 | CX23: 1 | CY23: 1 | CZ23: 1 | DA23: 1 | DB23: 1 | DC23: 1 | DD23: 1 | DE23: 115 | DF23: 95 | DG23: 60 | DH23: 49 | DI23: 32 | DJ23: 29 | DK23: 22 | DL23: 16 | DM23: 11 | DN23: 10 | DO23: 6 | DP23: 5 | DQ23: 4 | DR23: 4 | DS23: 2 | DT23: 2 | DU23: 2 | DV23: 2 | DW23: 1 | DX23: 1 | DY23: 1 | DZ23: 1 | EA23: 1 | EB23: 1 | EC23: 1 | ED23: 1 | EE23: 1 | EF23: 1 | EG23: 1 | EH23: 1 | EI23: 1 | EJ23: 1 | EK23: 1
B25: Période d'étude | C25: 1er semestre 2012 - 2ème semestre 2015, soient 4 années
